Workbook

Sheet Instructions (hidden)
A1: Operating and Financial Statistics Report - General Instructions

Sheet Overview (hidden)
B1: ="1. OVERVIEW: "&Overview!D4 -> 1. OVERVIEW: | F1: URBAN OpStats
B2: FY2024 | D2: A | E2: B | F2: C | J2: APEX (255)
B3: System Information | J3: ASHEVILLE (201)
A4: 1 | B4: CTP Grantee's Legal Name | G4: 1 | J4: BURLINGTON (249)
D5: First Name | E5: Middle Initial | F5: Last Name | J5: CARTS (251)
A6: =A4+1 -> 2 | B6: Transit's Contact Person | G6: 2 | J6: CARY (203)
A7: 2a | B7: Contact Email | G7: 2a | J7: CHAPEL HILL (205)
A8: 3 | B8: Transit's Telephone Number | G8: 3 | J8: CHARLOTTE (207)
J9: CONCORD/KANNAPOLIS (209)
A10: =A8+1 -> 4 | B10: Transit's Fax Number | G10: 4 | J10: DURHAM (211)
J11: FAYETTEVILLE (213)
A12: =A10+1 -> 5 | C12: Date | G12: 5 | J12: GASTONIA (215)
B13: Operating Modes | J13: GOLDSBORO (217)
E14: Operating Modes | J14: GREENSBORO (219)
A15: =A12+1 -> 6 | B15: Fixed Route | E15: 0 | G15: =G12+1 -> 6 | J15: GREENVILLE (221)
A16: =A15+1 -> 7 | B16: Dial-A-Ride | E16: 0 | G16: =G15+1 -> 7 | J16: HENDERSON COUNTY (223)
A17: =A16+1 -> 8 | B17: Light Rail | E17: 0 | G17: =G16+1 -> 8 | J17: HIGH POINT (225)
A18: =A17+1 -> 9 | B18: Street Car | E18: 0 | G18: =G17+1 -> 9 | J18: JACKSONVILLE (227)
A19: =A18+1 -> 10 | B19: Vanpool | E19: 0 | G19: 10 | J19: MORRISVILLE (253)
A20: 11 | B20: Microtransit | E20: 0 | G20: 11 | J20: PIEDMONT AUTHORITY (229)
J21: RALEIGH - CAT (231)
B22: Operating Hours | J22: RALEIGH - NCSU (233)
D23: Begin Time | E23: End Time | F23: # of Peak Period Routes | J23: ROCKY MOUNT (235)
A24: =A20+1 -> 12 | C24: Weekday | G24: =G20+1 -> 12 | J24: SALISBURY (237)
A25: =A24+1 -> 13 | C25: Saturday (if applicable) | G25: =G24+1 -> 13 | J25: TRIANGLE TRANSIT (239)
A26: =A25+1 -> 14 | C26: Sunday (if applicable) | G26: =G25+1 -> 14 | J26: WILMINGTON (241)
J27: WINSTON-SALEM (245)
B28: Management/Operations Contractor | J28: WPRTA (247)
A29: =A26+1 -> 15 | C29: Contractor Name | G29: =G26+1 -> 15
D30: A | E30: B | F30: C

Sheet Weekday (hidden)
B1: ="2. WEEKDAY: "&Overview!D4 -> 2. WEEKDAY:
D2: A | E2: B | F2: C | G2: D | H2: E | I2: F | J2: G | K2: H | L2: I | M2: J | N2: K | O2: L
B3: =Overview!B2 -> FY2024 | D3: July | E3: August | F3: September | G3: October | H3: November | I3: December | J3: January | K3: February | L3: March | M3: April | N3: May | O3: June | P3: Quarter 1 | Q3: Quarter 2 | R3: Quarter 3 | S3: Quarter 4 | T3: YTD Totals
A4: =Overview!A29+1 -> 16 | C4: Operating Days | P4: =D4+E4+F4 -> 0 | Q4: =G4+H4+I4 -> 0 | R4: =J4+K4+L4 -> 0 | S4: =M4+N4+O4 -> 0 | T4: =SUM(D4:O4) -> 0 | U4: =Overview!G29+1 -> 16
B5: Fixed Route
A6: =A4+1 -> 17 | C6: AM/PM Peak Period Vehicles | P6: =MAX(D6:F6) -> 0 | Q6: =MAX(G6:I6) -> 0 | R6: =MAX(J6:L6) -> 0 | S6: =MAX(M6:O6) -> 0 | T6: =MAX(P6:S6) -> 0 | U6: =U4+1 -> 17
A7: =A6+1 -> 18 | C7: Midday Vehicles | P7: =MAX(D7:F7) -> 0 | Q7: =MAX(G7:I7) -> 0 | R7: =MAX(J7:L7) -> 0 | S7: =MAX(M7:O7) -> 0 | T7: =MAX(P7:S7) -> 0 | U7: =U6+1 -> 18
A8: =A7+1 -> 19 | C8: Total Unlinked Passenger Trips | P8: =D8+E8+F8 -> 0 | Q8: =G8+H8+I8 -> 0 | R8: =J8+K8+L8 -> 0 | S8: =M8+N8+O8 -> 0 | T8: =SUM(D8:O8) -> 0 | U8: =U7+1 -> 19
A9: =A8+1 -> 20 | C9: Vehicle Revenue Miles | P9: =D9+E9+F9 -> 0 | Q9: =G9+H9+I9 -> 0 | R9: =J9+K9+L9 -> 0 | S9: =M9+N9+O9 -> 0 | T9: =SUM(D9:O9) -> 0 | U9: =U8+1 -> 20
A10: =A9+1 -> 21 | C10: Vehicle Revenue Hours | P10: =D10+E10+F10 -> 0 | Q10: =G10+H10+I10 -> 0 | R10: =J10+K10+L10 -> 0 | S10: =M10+N10+O10 -> 0 | T10: =SUM(D10:O10) -> 0 | U10: =U9+1 -> 21
B11: Dial-A-Ride
A12: =A10+1 -> 22 | C12: AM/PM Peak Period Vehicles | P12: =MAX(D12:F12) -> 0 | Q12: =MAX(G12:I12) -> 0 | R12: =MAX(J12:L12) -> 0 | S12: =MAX(M12:O12) -> 0 | T12: =MAX(P12:S12) -> 0 | U12: =U10+1 -> 22
A13: =A12+1 -> 23 | C13: Midday Vehicles | P13: =MAX(D13:F13) -> 0 | Q13: =MAX(G13:I13) -> 0 | R13: =MAX(J13:L13) -> 0 | S13: =MAX(M13:O13) -> 0 | T13: =MAX(P13:S13) -> 0 | U13: =U12+1 -> 23
A14: =A13+1 -> 24 | C14: Total Unlinked Passenger Trips | P14: =D14+E14+F14 -> 0 | Q14: =G14+H14+I14 -> 0 | R14: =J14+K14+L14 -> 0 | S14: =M14+N14+O14 -> 0 | T14: =SUM(D14:O14) -> 0 | U14: =U13+1 -> 24
A15: =A14+1 -> 25 | C15: Vehicle Revenue Miles | P15: =D15+E15+F15 -> 0 | Q15: =G15+H15+I15 -> 0 | R15: =J15+K15+L15 -> 0 | S15: =M15+N15+O15 -> 0 | T15: =SUM(D15:O15) -> 0 | U15: =U14+1 -> 25
A16: =A15+1 -> 26 | C16: Vehicle Revenue Hours | P16: =D16+E16+F16 -> 0 | Q16: =G16+H16+I16 -> 0 | R16: =J16+K16+L16 -> 0 | S16: =M16+N16+O16 -> 0 | T16: =SUM(D16:O16) -> 0 | U16: =U15+1 -> 26
B17: Light Rail
A18: =A16+1 -> 27 | C18: AM/PM Peak Period Trains | P18: =MAX(D18:F18) -> 0 | Q18: =MAX(G18:I18) -> 0 | R18: =MAX(J18:L18) -> 0 | S18: =MAX(M18:O18) -> 0 | T18: =MAX(P18:S18) -> 0 | U18: =U16+1 -> 27
A19: =A18+1 -> 28 | C19: Midday Trains | P19: =MAX(D19:F19) -> 0 | Q19: =MAX(G19:I19) -> 0 | R19: =MAX(J19:L19) -> 0 | S19: =MAX(M19:O19) -> 0 | T19: =MAX(P19:S19) -> 0 | U19: =U18+1 -> 28
A20: =A19+1 -> 29 | C20: Total Unlinked Passenger Trips | P20: =D20+E20+F20 -> 0 | Q20: =G20+H20+I20 -> 0 | R20: =J20+K20+L20 -> 0 | S20: =M20+N20+O20 -> 0 | T20: =SUM(D20:O20) -> 0 | U20: =U19+1 -> 29
A21: =A20+1 -> 30 | C21: Train Revenue Miles | P21: =D21+E21+F21 -> 0 | Q21: =G21+H21+I21 -> 0 | R21: =J21+K21+L21 -> 0 | S21: =M21+N21+O21 -> 0 | T21: =SUM(D21:O21) -> 0 | U21: =U20+1 -> 30
A22: =A21+1 -> 31 | C22: Train Revenue Hours | P22: =D22+E22+F22 -> 0 | Q22: =G22+H22+I22 -> 0 | R22: =J22+K22+L22 -> 0 | S22: =M22+N22+O22 -> 0 | T22: =SUM(D22:O22) -> 0 | U22: =U21+1 -> 31
B23: Street Car
A24: =A22+1 -> 32 | C24: AM/PM Peak Period Vehicles | P24: =MAX(D24:F24) -> 0 | Q24: =MAX(G24:I24) -> 0 | R24: =MAX(J24:L24) -> 0 | S24: =MAX(M24:O24) -> 0 | T24: =MAX(P24:S24) -> 0 | U24: =U22+1 -> 32
A25: =A24+1 -> 33 | C25: Midday Vehicles | P25: =MAX(D25:F25) -> 0 | Q25: =MAX(G25:I25) -> 0 | R25: =MAX(J25:L25) -> 0 | S25: =MAX(M25:O25) -> 0 | T25: =MAX(P25:S25) -> 0 | U25: =U24+1 -> 33
A26: =A25+1 -> 34 | C26: Total Unlinked Passenger Trips | P26: =D26+E26+F26 -> 0 | Q26: =G26+H26+I26 -> 0 | R26: =J26+K26+L26 -> 0 | S26: =M26+N26+O26 -> 0 | T26: =SUM(D26:O26) -> 0 | U26: =U25+1 -> 34
A27: =A26+1 -> 35 | C27: Vehicle Revenue Miles | P27: =D27+E27+F27 -> 0 | Q27: =G27+H27+I27 -> 0 | R27: =J27+K27+L27 -> 0 | S27: =M27+N27+O27 -> 0 | T27: =SUM(D27:O27) -> 0 | U27: =U26+1 -> 35
A28: =A27+1 -> 36 | C28: Vehicle Revenue Hours | P28: =D28+E28+F28 -> 0 | Q28: =G28+H28+I28 -> 0 | R28: =J28+K28+L28 -> 0 | S28: =M28+N28+O28 -> 0 | T28: =SUM(D28:O28) -> 0 | U28: =U27+1 -> 36
B29: Vanpool
A30: =A28+1 -> 37 | C30: AM/PM Peak Period Vehicles | P30: =MAX(D30:F30) -> 0 | Q30: =MAX(G30:I30) -> 0 | R30: =MAX(J30:L30) -> 0 | S30: =MAX(M30:O30) -> 0 | T30: =MAX(P30:S30) -> 0 | U30: =U28+1 -> 37
A31: =A30+1 -> 38 | C31: Midday Vehicles | P31: =MAX(D31:F31) -> 0 | Q31: =MAX(G31:I31) -> 0 | R31: =MAX(J31:L31) -> 0 | S31: =MAX(M31:O31) -> 0 | T31: =MAX(P31:S31) -> 0 | U31: =U30+1 -> 38
A32: =A31+1 -> 39 | C32: Total Unlinked Passenger Trips | P32: =D32+E32+F32 -> 0 | Q32: =G32+H32+I32 -> 0 | R32: =J32+K32+L32 -> 0 | S32: =M32+N32+O32 -> 0 | T32: =SUM(D32:O32) -> 0 | U32: =U31+1 -> 39
A33: =A32+1 -> 40 | C33: Vehicle Revenue Miles | P33: =D33+E33+F33 -> 0 | Q33: =G33+H33+I33 -> 0 | R33: =J33+K33+L33 -> 0 | S33: =M33+N33+O33 -> 0 | T33: =SUM(D33:O33) -> 0 | U33: =U32+1 -> 40
A34: =A33+1 -> 41 | C34: Vehicle Revenue Hours | P34: =D34+E34+F34 -> 0 | Q34: =G34+H34+I34 -> 0 | R34: =J34+K34+L34 -> 0 | S34: =M34+N34+O34 -> 0 | T34: =SUM(D34:O34) -> 0 | U34: =U33+1 -> 41
B35: Microtransit
A36: =A34+1 -> 42 | C36: AM/PM Peak Period Vehicles | P36: =MAX(D36:F36) -> 0 | Q36: =MAX(G36:I36) -> 0 | R36: =MAX(J36:L36) -> 0 | S36: =MAX(M36:O36) -> 0 | T36: =MAX(P36:S36) -> 0 | U36: =U34+1 -> 42
A37: =A36+1 -> 43 | C37: Midday Vehicles | P37: =MAX(D37:F37) -> 0 | Q37: =MAX(G37:I37) -> 0 | R37: =MAX(J37:L37) -> 0 | S37: =MAX(M37:O37) -> 0 | T37: =MAX(P37:S37) -> 0 | U37: =U36+1 -> 43
A38: =A37+1 -> 44 | C38: Total Unlinked Passenger Trips | P38: =D38+E38+F38 -> 0 | Q38: =G38+H38+I38 -> 0 | R38: =J38+K38+L38 -> 0 | S38: =M38+N38+O38 -> 0 | T38: =SUM(D38:O38) -> 0 | U38: =U37+1 -> 44
A39: =A38+1 -> 45 | C39: Vehicle Revenue Miles | P39: =D39+E39+F39 -> 0 | Q39: =G39+H39+I39 -> 0 | R39: =J39+K39+L39 -> 0 | S39: =M39+N39+O39 -> 0 | T39: =SUM(D39:O39) -> 0 | U39: =U38+1 -> 45
A40: =A39+1 -> 46 | C40: Vehicle Revenue Hours | P40: =D40+E40+F40 -> 0 | Q40: =G40+H40+I40 -> 0 | R40: =J40+K40+L40 -> 0 | S40: =M40+N40+O40 -> 0 | T40: =SUM(D40:O40) -> 0 | U40: =U39+1 -> 46
D41: A | E41: B | F41: C | G41: D | H41: E | I41: F | J41: G | K41: H | L41: I | M41: J | N41: K | O41: L

Sheet Saturday (hidden)
B1: ="3. SATURDAY: "&Overview!D4 -> 3. SATURDAY:
D2: A | E2: B | F2: C | G2: D | H2: E | I2: F | J2: G | K2: H | L2: I | M2: J | N2: K | O2: L
B3: =Overview!B2 -> FY2024 | D3: July | E3: August | F3: September | G3: October | H3: November | I3: December | J3: January | K3: February | L3: March | M3: April | N3: May | O3: June | P3: Quarter 1 | Q3: Quarter 2 | R3: Quarter 3 | S3: Quarter 4 | T3: YTD Totals
A4: =Weekday!A40+1 -> 47 | C4: Operating Days | P4: =D4+E4+F4 -> 0 | Q4: =G4+H4+I4 -> 0 | R4: =J4+K4+L4 -> 0 | S4: =M4+N4+O4 -> 0 | T4: =SUM(D4:O4) -> 0 | U4: =Weekday!U40+1 -> 47
B5: Fixed Route
A6: =A4+1 -> 48 | C6: AM/PM Peak Period Vehicles | P6: =MAX(D6:F6) -> 0 | Q6: =MAX(G6:I6) -> 0 | R6: =MAX(J6:L6) -> 0 | S6: =MAX(M6:O6) -> 0 | T6: =MAX(P6:S6) -> 0 | U6: =U4+1 -> 48
A7: =A6+1 -> 49 | C7: Midday Vehicles | P7: =MAX(D7:F7) -> 0 | Q7: =MAX(G7:I7) -> 0 | R7: =MAX(J7:L7) -> 0 | S7: =MAX(M7:O7) -> 0 | T7: =MAX(P7:S7) -> 0 | U7: =U6+1 -> 49
A8: =A7+1 -> 50 | C8: Total Unlinked Passenger Trips | P8: =D8+E8+F8 -> 0 | Q8: =G8+H8+I8 -> 0 | R8: =J8+K8+L8 -> 0 | S8: =M8+N8+O8 -> 0 | T8: =SUM(D8:O8) -> 0 | U8: =U7+1 -> 50
A9: =A8+1 -> 51 | C9: Vehicle Revenue Miles | P9: =D9+E9+F9 -> 0 | Q9: =G9+H9+I9 -> 0 | R9: =J9+K9+L9 -> 0 | S9: =M9+N9+O9 -> 0 | T9: =SUM(D9:O9) -> 0 | U9: =U8+1 -> 51
A10: =A9+1 -> 52 | C10: Vehicle Revenue Hours | P10: =D10+E10+F10 -> 0 | Q10: =G10+H10+I10 -> 0 | R10: =J10+K10+L10 -> 0 | S10: =M10+N10+O10 -> 0 | T10: =SUM(D10:O10) -> 0 | U10: =U9+1 -> 52
B11: Dial-A-Ride
A12: =A10+1 -> 53 | C12: AM/PM Peak Period Vehicles | P12: =MAX(D12:F12) -> 0 | Q12: =MAX(G12:I12) -> 0 | R12: =MAX(J12:L12) -> 0 | S12: =MAX(M12:O12) -> 0 | T12: =MAX(P12:S12) -> 0 | U12: =U10+1 -> 53
A13: =A12+1 -> 54 | C13: Midday Vehicles | P13: =MAX(D13:F13) -> 0 | Q13: =MAX(G13:I13) -> 0 | R13: =MAX(J13:L13) -> 0 | S13: =MAX(M13:O13) -> 0 | T13: =MAX(P13:S13) -> 0 | U13: =U12+1 -> 54
A14: =A13+1 -> 55 | C14: Total Unlinked Passenger Trips | P14: =D14+E14+F14 -> 0 | Q14: =G14+H14+I14 -> 0 | R14: =J14+K14+L14 -> 0 | S14: =M14+N14+O14 -> 0 | T14: =SUM(D14:O14) -> 0 | U14: =U13+1 -> 55
A15: =A14+1 -> 56 | C15: Vehicle Revenue Miles | P15: =D15+E15+F15 -> 0 | Q15: =G15+H15+I15 -> 0 | R15: =J15+K15+L15 -> 0 | S15: =M15+N15+O15 -> 0 | T15: =SUM(D15:O15) -> 0 | U15: =U14+1 -> 56
A16: =A15+1 -> 57 | C16: Vehicle Revenue Hours | P16: =D16+E16+F16 -> 0 | Q16: =G16+H16+I16 -> 0 | R16: =J16+K16+L16 -> 0 | S16: =M16+N16+O16 -> 0 | T16: =SUM(D16:O16) -> 0 | U16: =U15+1 -> 57
B17: Light Rail
A18: =A16+1 -> 58 | C18: AM/PM Peak Period Trains | P18: =MAX(D18:F18) -> 0 | Q18: =MAX(G18:I18) -> 0 | R18: =MAX(J18:L18) -> 0 | S18: =MAX(M18:O18) -> 0 | T18: =MAX(P18:S18) -> 0 | U18: =U16+1 -> 58
A19: =A18+1 -> 59 | C19: Midday Trains | P19: =MAX(D19:F19) -> 0 | Q19: =MAX(G19:I19) -> 0 | R19: =MAX(J19:L19) -> 0 | S19: =MAX(M19:O19) -> 0 | T19: =MAX(P19:S19) -> 0 | U19: =U18+1 -> 59
A20: =A19+1 -> 60 | C20: Total Unlinked Passenger Trips | P20: =D20+E20+F20 -> 0 | Q20: =G20+H20+I20 -> 0 | R20: =J20+K20+L20 -> 0 | S20: =M20+N20+O20 -> 0 | T20: =SUM(D20:O20) -> 0 | U20: =U19+1 -> 60
A21: =A20+1 -> 61 | C21: Train Revenue Miles | P21: =D21+E21+F21 -> 0 | Q21: =G21+H21+I21 -> 0 | R21: =J21+K21+L21 -> 0 | S21: =M21+N21+O21 -> 0 | T21: =SUM(D21:O21) -> 0 | U21: =U20+1 -> 61
A22: =A21+1 -> 62 | C22: Train Revenue Hours | P22: =D22+E22+F22 -> 0 | Q22: =G22+H22+I22 -> 0 | R22: =J22+K22+L22 -> 0 | S22: =M22+N22+O22 -> 0 | T22: =SUM(D22:O22) -> 0 | U22: =U21+1 -> 62
B23: Street Car
A24: =A22+1 -> 63 | C24: AM/PM Peak Period Vehicles | P24: =MAX(D24:F24) -> 0 | Q24: =MAX(G24:I24) -> 0 | R24: =MAX(J24:L24) -> 0 | S24: =MAX(M24:O24) -> 0 | T24: =MAX(P24:S24) -> 0 | U24: =U22+1 -> 63
A25: =A24+1 -> 64 | C25: Midday Vehicles | P25: =MAX(D25:F25) -> 0 | Q25: =MAX(G25:I25) -> 0 | R25: =MAX(J25:L25) -> 0 | S25: =MAX(M25:O25) -> 0 | T25: =MAX(P25:S25) -> 0 | U25: =U24+1 -> 64
A26: =A25+1 -> 65 | C26: Total Unlinked Passenger Trips | P26: =D26+E26+F26 -> 0 | Q26: =G26+H26+I26 -> 0 | R26: =J26+K26+L26 -> 0 | S26: =M26+N26+O26 -> 0 | T26: =SUM(D26:O26) -> 0 | U26: =U25+1 -> 65
A27: =A26+1 -> 66 | C27: Vehicle Revenue Miles | P27: =D27+E27+F27 -> 0 | Q27: =G27+H27+I27 -> 0 | R27: =J27+K27+L27 -> 0 | S27: =M27+N27+O27 -> 0 | T27: =SUM(D27:O27) -> 0 | U27: =U26+1 -> 66
A28: =A27+1 -> 67 | C28: Vehicle Revenue Hours | P28: =D28+E28+F28 -> 0 | Q28: =G28+H28+I28 -> 0 | R28: =J28+K28+L28 -> 0 | S28: =M28+N28+O28 -> 0 | T28: =SUM(D28:O28) -> 0 | U28: =U27+1 -> 67
B29: Vanpool
A30: =A28+1 -> 68 | C30: AM/PM Peak Period Vehicles | P30: =MAX(D30:F30) -> 0 | Q30: =MAX(G30:I30) -> 0 | R30: =MAX(J30:L30) -> 0 | S30: =MAX(M30:O30) -> 0 | T30: =MAX(P30:S30) -> 0 | U30: =U28+1 -> 68
A31: =A30+1 -> 69 | C31: Midday Vehicles | P31: =MAX(D31:F31) -> 0 | Q31: =MAX(G31:I31) -> 0 | R31: =MAX(J31:L31) -> 0 | S31: =MAX(M31:O31) -> 0 | T31: =MAX(P31:S31) -> 0 | U31: =U30+1 -> 69
A32: =A31+1 -> 70 | C32: Total Unlinked Passenger Trips | P32: =D32+E32+F32 -> 0 | Q32: =G32+H32+I32 -> 0 | R32: =J32+K32+L32 -> 0 | S32: =M32+N32+O32 -> 0 | T32: =SUM(D32:O32) -> 0 | U32: =U31+1 -> 70
A33: =A32+1 -> 71 | C33: Vehicle Revenue Miles | P33: =D33+E33+F33 -> 0 | Q33: =G33+H33+I33 -> 0 | R33: =J33+K33+L33 -> 0 | S33: =M33+N33+O33 -> 0 | T33: =SUM(D33:O33) -> 0 | U33: =U32+1 -> 71
A34: =A33+1 -> 72 | C34: Vehicle Revenue Hours | P34: =D34+E34+F34 -> 0 | Q34: =G34+H34+I34 -> 0 | R34: =J34+K34+L34 -> 0 | S34: =M34+N34+O34 -> 0 | T34: =SUM(D34:O34) -> 0 | U34: =U33+1 -> 72
B35: Microtransit
A36: =A34+1 -> 73 | C36: AM/PM Peak Period Vehicles | P36: =MAX(D36:F36) -> 0 | Q36: =MAX(G36:I36) -> 0 | R36: =MAX(J36:L36) -> 0 | S36: =MAX(M36:O36) -> 0 | T36: =MAX(P36:S36) -> 0 | U36: =U34+1 -> 73
A37: =A36+1 -> 74 | C37: Midday Vehicles | P37: =MAX(D37:F37) -> 0 | Q37: =MAX(G37:I37) -> 0 | R37: =MAX(J37:L37) -> 0 | S37: =MAX(M37:O37) -> 0 | T37: =MAX(P37:S37) -> 0 | U37: =U36+1 -> 74
A38: =A37+1 -> 75 | C38: Total Unlinked Passenger Trips | P38: =D38+E38+F38 -> 0 | Q38: =G38+H38+I38 -> 0 | R38: =J38+K38+L38 -> 0 | S38: =M38+N38+O38 -> 0 | T38: =SUM(D38:O38) -> 0 | U38: =U37+1 -> 75
A39: =A38+1 -> 76 | C39: Vehicle Revenue Miles | P39: =D39+E39+F39 -> 0 | Q39: =G39+H39+I39 -> 0 | R39: =J39+K39+L39 -> 0 | S39: =M39+N39+O39 -> 0 | T39: =SUM(D39:O39) -> 0 | U39: =U38+1 -> 76
A40: =A39+1 -> 77 | C40: Vehicle Revenue Hours | P40: =D40+E40+F40 -> 0 | Q40: =G40+H40+I40 -> 0 | R40: =J40+K40+L40 -> 0 | S40: =M40+N40+O40 -> 0 | T40: =SUM(D40:O40) -> 0 | U40: =U39+1 -> 77
D41: A | E41: B | F41: C | G41: D | H41: E | I41: F | J41: G | K41: H | L41: I | M41: J | N41: K | O41: L

Sheet Sunday (hidden)
B1: ="4. SUNDAY: "&Overview!D4 -> 4. SUNDAY:
D2: A | E2: B | F2: C | G2: D | H2: E | I2: F | J2: G | K2: H | L2: I | M2: J | N2: K | O2: L
B3: =Overview!B2 -> FY2024 | D3: July | E3: August | F3: September | G3: October | H3: November | I3: December | J3: January | K3: February | L3: March | M3: April | N3: May | O3: June | P3: Quarter 1 | Q3: Quarter 2 | R3: Quarter 3 | S3: Quarter 4 | T3: YTD Totals
A4: =Saturday!A40+1 -> 78 | C4: Operating Days | P4: =D4+E4+F4 -> 0 | Q4: =G4+H4+I4 -> 0 | R4: =J4+K4+L4 -> 0 | S4: =M4+N4+O4 -> 0 | T4: =SUM(D4:O4) -> 0 | U4: =Saturday!U40+1 -> 78
B5: Fixed Route
A6: =A4+1 -> 79 | C6: AM/PM Peak Period Vehicles | P6: =MAX(D6:F6) -> 0 | Q6: =MAX(G6:I6) -> 0 | R6: =MAX(J6:L6) -> 0 | S6: =MAX(M6:O6) -> 0 | T6: =MAX(P6:S6) -> 0 | U6: =U4+1 -> 79
A7: =A6+1 -> 80 | C7: Midday Vehicles | P7: =MAX(D7:F7) -> 0 | Q7: =MAX(G7:I7) -> 0 | R7: =MAX(J7:L7) -> 0 | S7: =MAX(M7:O7) -> 0 | T7: =MAX(P7:S7) -> 0 | U7: =U6+1 -> 80
A8: =A7+1 -> 81 | C8: Total Unlinked Passenger Trips | P8: =D8+E8+F8 -> 0 | Q8: =G8+H8+I8 -> 0 | R8: =J8+K8+L8 -> 0 | S8: =M8+N8+O8 -> 0 | T8: =SUM(D8:O8) -> 0 | U8: =U7+1 -> 81
A9: =A8+1 -> 82 | C9: Vehicle Revenue Miles | P9: =D9+E9+F9 -> 0 | Q9: =G9+H9+I9 -> 0 | R9: =J9+K9+L9 -> 0 | S9: =M9+N9+O9 -> 0 | T9: =SUM(D9:O9) -> 0 | U9: =U8+1 -> 82
A10: =A9+1 -> 83 | C10: Vehicle Revenue Hours | P10: =D10+E10+F10 -> 0 | Q10: =G10+H10+I10 -> 0 | R10: =J10+K10+L10 -> 0 | S10: =M10+N10+O10 -> 0 | T10: =SUM(D10:O10) -> 0 | U10: =U9+1 -> 83
B11: Dial-A-Ride
A12: =A10+1 -> 84 | C12: AM/PM Peak Period Vehicles | P12: =MAX(D12:F12) -> 0 | Q12: =MAX(G12:I12) -> 0 | R12: =MAX(J12:L12) -> 0 | S12: =MAX(M12:O12) -> 0 | T12: =MAX(P12:S12) -> 0 | U12: =U10+1 -> 84
A13: =A12+1 -> 85 | C13: Midday Vehicles | P13: =MAX(D13:F13) -> 0 | Q13: =MAX(G13:I13) -> 0 | R13: =MAX(J13:L13) -> 0 | S13: =MAX(M13:O13) -> 0 | T13: =MAX(P13:S13) -> 0 | U13: =U12+1 -> 85
A14: =A13+1 -> 86 | C14: Total Unlinked Passenger Trips | P14: =D14+E14+F14 -> 0 | Q14: =G14+H14+I14 -> 0 | R14: =J14+K14+L14 -> 0 | S14: =M14+N14+O14 -> 0 | T14: =SUM(D14:O14) -> 0 | U14: =U13+1 -> 86
A15: =A14+1 -> 87 | C15: Vehicle Revenue Miles | P15: =D15+E15+F15 -> 0 | Q15: =G15+H15+I15 -> 0 | R15: =J15+K15+L15 -> 0 | S15: =M15+N15+O15 -> 0 | T15: =SUM(D15:O15) -> 0 | U15: =U14+1 -> 87
A16: =A15+1 -> 88 | C16: Vehicle Revenue Hours | P16: =D16+E16+F16 -> 0 | Q16: =G16+H16+I16 -> 0 | R16: =J16+K16+L16 -> 0 | S16: =M16+N16+O16 -> 0 | T16: =SUM(D16:O16) -> 0 | U16: =U15+1 -> 88
B17: Light Rail
A18: =A16+1 -> 89 | C18: AM/PM Peak Period Trains | P18: =MAX(D18:F18) -> 0 | Q18: =MAX(G18:I18) -> 0 | R18: =MAX(J18:L18) -> 0 | S18: =MAX(M18:O18) -> 0 | T18: =MAX(P18:S18) -> 0 | U18: =U16+1 -> 89
A19: =A18+1 -> 90 | C19: Midday Trains | P19: =MAX(D19:F19) -> 0 | Q19: =MAX(G19:I19) -> 0 | R19: =MAX(J19:L19) -> 0 | S19: =MAX(M19:O19) -> 0 | T19: =MAX(P19:S19) -> 0 | U19: =U18+1 -> 90
A20: =A19+1 -> 91 | C20: Total Unlinked Passenger Trips | P20: =D20+E20+F20 -> 0 | Q20: =G20+H20+I20 -> 0 | R20: =J20+K20+L20 -> 0 | S20: =M20+N20+O20 -> 0 | T20: =SUM(D20:O20) -> 0 | U20: =U19+1 -> 91
A21: =A20+1 -> 92 | C21: Train Revenue Miles | P21: =D21+E21+F21 -> 0 | Q21: =G21+H21+I21 -> 0 | R21: =J21+K21+L21 -> 0 | S21: =M21+N21+O21 -> 0 | T21: =SUM(D21:O21) -> 0 | U21: =U20+1 -> 92
A22: =A21+1 -> 93 | C22: Train Revenue Hours | P22: =D22+E22+F22 -> 0 | Q22: =G22+H22+I22 -> 0 | R22: =J22+K22+L22 -> 0 | S22: =M22+N22+O22 -> 0 | T22: =SUM(D22:O22) -> 0 | U22: =U21+1 -> 93
B23: Street Car
A24: =A22+1 -> 94 | C24: AM/PM Peak Period Vehicles | P24: =MAX(D24:F24) -> 0 | Q24: =MAX(G24:I24) -> 0 | R24: =MAX(J24:L24) -> 0 | S24: =MAX(M24:O24) -> 0 | T24: =MAX(P24:S24) -> 0 | U24: =U22+1 -> 94
A25: =A24+1 -> 95 | C25: Midday Vehicles | P25: =MAX(D25:F25) -> 0 | Q25: =MAX(G25:I25) -> 0 | R25: =MAX(J25:L25) -> 0 | S25: =MAX(M25:O25) -> 0 | T25: =MAX(P25:S25) -> 0 | U25: =U24+1 -> 95
A26: =A25+1 -> 96 | C26: Total Unlinked Passenger Trips | P26: =D26+E26+F26 -> 0 | Q26: =G26+H26+I26 -> 0 | R26: =J26+K26+L26 -> 0 | S26: =M26+N26+O26 -> 0 | T26: =SUM(D26:O26) -> 0 | U26: =U25+1 -> 96
A27: =A26+1 -> 97 | C27: Vehicle Revenue Miles | P27: =D27+E27+F27 -> 0 | Q27: =G27+H27+I27 -> 0 | R27: =J27+K27+L27 -> 0 | S27: =M27+N27+O27 -> 0 | T27: =SUM(D27:O27) -> 0 | U27: =U26+1 -> 97
A28: =A27+1 -> 98 | C28: Vehicle Revenue Hours | P28: =D28+E28+F28 -> 0 | Q28: =G28+H28+I28 -> 0 | R28: =J28+K28+L28 -> 0 | S28: =M28+N28+O28 -> 0 | T28: =SUM(D28:O28) -> 0 | U28: =U27+1 -> 98
B29: Vanpool
A30: =A28+1 -> 99 | C30: AM/PM Peak Period Vehicles | P30: =MAX(D30:F30) -> 0 | Q30: =MAX(G30:I30) -> 0 | R30: =MAX(J30:L30) -> 0 | S30: =MAX(M30:O30) -> 0 | T30: =MAX(P30:S30) -> 0 | U30: =U28+1 -> 99
A31: =A30+1 -> 100 | C31: Midday Vehicles | P31: =MAX(D31:F31) -> 0 | Q31: =MAX(G31:I31) -> 0 | R31: =MAX(J31:L31) -> 0 | S31: =MAX(M31:O31) -> 0 | T31: =MAX(P31:S31) -> 0 | U31: =U30+1 -> 100
A32: =A31+1 -> 101 | C32: Total Unlinked Passenger Trips | P32: =D32+E32+F32 -> 0 | Q32: =G32+H32+I32 -> 0 | R32: =J32+K32+L32 -> 0 | S32: =M32+N32+O32 -> 0 | T32: =SUM(D32:O32) -> 0 | U32: =U31+1 -> 101
A33: =A32+1 -> 102 | C33: Vehicle Revenue Miles | P33: =D33+E33+F33 -> 0 | Q33: =G33+H33+I33 -> 0 | R33: =J33+K33+L33 -> 0 | S33: =M33+N33+O33 -> 0 | T33: =SUM(D33:O33) -> 0 | U33: =U32+1 -> 102
A34: =A33+1 -> 103 | C34: Vehicle Revenue Hours | P34: =D34+E34+F34 -> 0 | Q34: =G34+H34+I34 -> 0 | R34: =J34+K34+L34 -> 0 | S34: =M34+N34+O34 -> 0 | T34: =SUM(D34:O34) -> 0 | U34: =U33+1 -> 103
B35: Microtransit
A36: =A34+1 -> 104 | C36: AM/PM Peak Period Vehicles | P36: =MAX(D36:F36) -> 0 | Q36: =MAX(G36:I36) -> 0 | R36: =MAX(J36:L36) -> 0 | S36: =MAX(M36:O36) -> 0 | T36: =MAX(P36:S36) -> 0 | U36: =U34+1 -> 104
A37: =A36+1 -> 105 | C37: Midday Vehicles | P37: =MAX(D37:F37) -> 0 | Q37: =MAX(G37:I37) -> 0 | R37: =MAX(J37:L37) -> 0 | S37: =MAX(M37:O37) -> 0 | T37: =MAX(P37:S37) -> 0 | U37: =U36+1 -> 105
A38: =A37+1 -> 106 | C38: Total Unlinked Passenger Trips | P38: =D38+E38+F38 -> 0 | Q38: =G38+H38+I38 -> 0 | R38: =J38+K38+L38 -> 0 | S38: =M38+N38+O38 -> 0 | T38: =SUM(D38:O38) -> 0 | U38: =U37+1 -> 106
A39: =A38+1 -> 107 | C39: Vehicle Revenue Miles | P39: =D39+E39+F39 -> 0 | Q39: =G39+H39+I39 -> 0 | R39: =J39+K39+L39 -> 0 | S39: =M39+N39+O39 -> 0 | T39: =SUM(D39:O39) -> 0 | U39: =U38+1 -> 107
A40: =A39+1 -> 108 | C40: Vehicle Revenue Hours | P40: =D40+E40+F40 -> 0 | Q40: =G40+H40+I40 -> 0 | R40: =J40+K40+L40 -> 0 | S40: =M40+N40+O40 -> 0 | T40: =SUM(D40:O40) -> 0 | U40: =U39+1 -> 108
D41: A | E41: B | F41: C | G41: D | H41: E | I41: F | J41: G | K41: H | L41: I | M41: J | N41: K | O41: L

Sheet Weekly Totals (hidden)
B1: ="5. WEEKLY TOTALS: "&Overview!D4 -> 5. WEEKLY TOTALS:
D2: A | E2: B | F2: C | G2: D | H2: E | I2: F | J2: G | K2: H | L2: I | M2: J | N2: K | O2: L
B3: =Overview!B2 -> FY2024 | D3: July | E3: August | F3: September | G3: October | H3: November | I3: December | J3: January | K3: February | L3: March | M3: April | N3: May | O3: June | P3: Quarter 1 | Q3: Quarter 2 | R3: Quarter 3 | S3: Quarter 4 | T3: YTD Totals
A4: =Sunday!A40+1 -> 109 | C4: Operating Days | D4: =Weekday!D4+Saturday!D4+Sunday!D4 -> 0 | E4: =Weekday!E4+Saturday!E4+Sunday!E4 -> 0 | F4: =Weekday!F4+Saturday!F4+Sunday!F4 -> 0 | G4: =Weekday!G4+Saturday!G4+Sunday!G4 -> 0 | H4: =Weekday!H4+Saturday!H4+Sunday!H4 -> 0 | I4: =Weekday!I4+Saturday!I4+Sunday!I4 -> 0 | J4: =Weekday!J4+Saturday!J4+Sunday!J4 -> 0 | K4: =Weekday!K4+Saturday!K4+Sunday!K4 -> 0 | L4: =Weekday!L4+Saturday!L4+Sunday!L4 -> 0 | M4: =Weekday!M4+Saturday!M4+Sunday!M4 -> 0 | N4: =Weekday!N4+Saturday!N4+Sunday!N4 -> 0 | O4: =Weekday!O4+Saturday!O4+Sunday!O4 -> 0 | P4: =D4+E4+F4 -> 0 | Q4: =G4+H4+I4 -> 0 | R4: =J4+K4+L4 -> 0 | S4: =M4+N4+O4 -> 0 | T4: =SUM(D4:O4) -> 0 | U4: =Sunday!U40+1 -> 109
B5: Fixed Route
A6: =A4+1 -> 110 | C6: AM/PM Peak Period Vehicles | D6: =MAX(Weekday!D6,Saturday!D6,Sunday!D6) -> 0 | E6: =MAX(Weekday!E6,Saturday!E6,Sunday!E6) -> 0 | F6: =MAX(Weekday!F6,Saturday!F6,Sunday!F6) -> 0 | G6: =MAX(Weekday!G6,Saturday!G6,Sunday!G6) -> 0 | H6: =MAX(Weekday!H6,Saturday!H6,Sunday!H6) -> 0 | I6: =MAX(Weekday!I6,Saturday!I6,Sunday!I6) -> 0 | J6: =MAX(Weekday!J6,Saturday!J6,Sunday!J6) -> 0 | K6: =MAX(Weekday!K6,Saturday!K6,Sunday!K6) -> 0 | L6: =MAX(Weekday!L6,Saturday!L6,Sunday!L6) -> 0 | M6: =MAX(Weekday!M6,Saturday!M6,Sunday!M6) -> 0 | N6: =MAX(Weekday!N6,Saturday!N6,Sunday!N6) -> 0 | O6: =MAX(Weekday!O6,Saturday!O6,Sunday!O6) -> 0 | P6: =MAX(D6:F6) -> 0 | Q6: =MAX(G6:I6) -> 0 | R6: =MAX(J6:L6) -> 0 | S6: =MAX(M6:O6) -> 0 | T6: =MAX(P6:S6) -> 0 | U6: =U4+1 -> 110
A7: =A6+1 -> 111 | C7: Midday Vehicles | D7: =MAX(Weekday!D7,Saturday!D7,Sunday!D7) -> 0 | E7: =MAX(Weekday!E7,Saturday!E7,Sunday!E7) -> 0 | F7: =MAX(Weekday!F7,Saturday!F7,Sunday!F7) -> 0 | G7: =MAX(Weekday!G7,Saturday!G7,Sunday!G7) -> 0 | H7: =MAX(Weekday!H7,Saturday!H7,Sunday!H7) -> 0 | I7: =MAX(Weekday!I7,Saturday!I7,Sunday!I7) -> 0 | J7: =MAX(Weekday!J7,Saturday!J7,Sunday!J7) -> 0 | K7: =MAX(Weekday!K7,Saturday!K7,Sunday!K7) -> 0 | L7: =MAX(Weekday!L7,Saturday!L7,Sunday!L7) -> 0 | M7: =MAX(Weekday!M7,Saturday!M7,Sunday!M7) -> 0 | N7: =MAX(Weekday!N7,Saturday!N7,Sunday!N7) -> 0 | O7: =MAX(Weekday!O7,Saturday!O7,Sunday!O7) -> 0 | P7: =MAX(D7:F7) -> 0 | Q7: =MAX(G7:I7) -> 0 | R7: =MAX(J7:L7) -> 0 | S7: =MAX(M7:O7) -> 0 | T7: =MAX(P7:S7) -> 0 | U7: =U6+1 -> 111
A8: =A7+1 -> 112 | C8: Total Unlinked Passenger Trips | D8: =Weekday!D8+Saturday!D8+Sunday!D8 -> 0 | E8: =Weekday!E8+Saturday!E8+Sunday!E8 -> 0 | F8: =Weekday!F8+Saturday!F8+Sunday!F8 -> 0 | G8: =Weekday!G8+Saturday!G8+Sunday!G8 -> 0 | H8: =Weekday!H8+Saturday!H8+Sunday!H8 -> 0 | I8: =Weekday!I8+Saturday!I8+Sunday!I8 -> 0 | J8: =Weekday!J8+Saturday!J8+Sunday!J8 -> 0 | K8: =Weekday!K8+Saturday!K8+Sunday!K8 -> 0 | L8: =Weekday!L8+Saturday!L8+Sunday!L8 -> 0 | M8: =Weekday!M8+Saturday!M8+Sunday!M8 -> 0 | N8: =Weekday!N8+Saturday!N8+Sunday!N8 -> 0 | O8: =Weekday!O8+Saturday!O8+Sunday!O8 -> 0 | P8: =D8+E8+F8 -> 0 | Q8: =G8+H8+I8 -> 0 | R8: =J8+K8+L8 -> 0 | S8: =M8+N8+O8 -> 0 | T8: =SUM(D8:O8) -> 0 | U8: =U7+1 -> 112
A9: =A8+1 -> 113 | C9: Vehicle Revenue Miles | D9: =Weekday!D9+Saturday!D9+Sunday!D9 -> 0 | E9: =Weekday!E9+Saturday!E9+Sunday!E9 -> 0 | F9: =Weekday!F9+Saturday!F9+Sunday!F9 -> 0 | G9: =Weekday!G9+Saturday!G9+Sunday!G9 -> 0 | H9: =Weekday!H9+Saturday!H9+Sunday!H9 -> 0 | I9: =Weekday!I9+Saturday!I9+Sunday!I9 -> 0 | J9: =Weekday!J9+Saturday!J9+Sunday!J9 -> 0 | K9: =Weekday!K9+Saturday!K9+Sunday!K9 -> 0 | L9: =Weekday!L9+Saturday!L9+Sunday!L9 -> 0 | M9: =Weekday!M9+Saturday!M9+Sunday!M9 -> 0 | N9: =Weekday!N9+Saturday!N9+Sunday!N9 -> 0 | O9: =Weekday!O9+Saturday!O9+Sunday!O9 -> 0 | P9: =D9+E9+F9 -> 0 | Q9: =G9+H9+I9 -> 0 | R9: =J9+K9+L9 -> 0 | S9: =M9+N9+O9 -> 0 | T9: =SUM(D9:O9) -> 0 | U9: =U8+1 -> 113
A10: =A9+1 -> 114 | C10: Vehicle Revenue Hours | D10: =Weekday!D10+Saturday!D10+Sunday!D10 -> 0 | E10: =Weekday!E10+Saturday!E10+Sunday!E10 -> 0 | F10: =Weekday!F10+Saturday!F10+Sunday!F10 -> 0 | G10: =Weekday!G10+Saturday!G10+Sunday!G10 -> 0 | H10: =Weekday!H10+Saturday!H10+Sunday!H10 -> 0 | I10: =Weekday!I10+Saturday!I10+Sunday!I10 -> 0 | J10: =Weekday!J10+Saturday!J10+Sunday!J10 -> 0 | K10: =Weekday!K10+Saturday!K10+Sunday!K10 -> 0 | L10: =Weekday!L10+Saturday!L10+Sunday!L10 -> 0 | M10: =Weekday!M10+Saturday!M10+Sunday!M10 -> 0 | N10: =Weekday!N10+Saturday!N10+Sunday!N10 -> 0 | O10: =Weekday!O10+Saturday!O10+Sunday!O10 -> 0 | P10: =D10+E10+F10 -> 0 | Q10: =G10+H10+I10 -> 0 | R10: =J10+K10+L10 -> 0 | S10: =M10+N10+O10 -> 0 | T10: =SUM(D10:O10) -> 0 | U10: =U9+1 -> 114
B11: Dial-A-Ride
A12: =A10+1 -> 115 | C12: AM/PM Peak Period Vehicles | D12: =MAX(Weekday!D12,Saturday!D12,Sunday!D12) -> 0 | E12: =MAX(Weekday!E12,Saturday!E12,Sunday!E12) -> 0 | F12: =MAX(Weekday!F12,Saturday!F12,Sunday!F12) -> 0 | G12: =MAX(Weekday!G12,Saturday!G12,Sunday!G12) -> 0 | H12: =MAX(Weekday!H12,Saturday!H12,Sunday!H12) -> 0 | I12: =MAX(Weekday!I12,Saturday!I12,Sunday!I12) -> 0 | J12: =MAX(Weekday!J12,Saturday!J12,Sunday!J12) -> 0 | K12: =MAX(Weekday!K12,Saturday!K12,Sunday!K12) -> 0 | L12: =MAX(Weekday!L12,Saturday!L12,Sunday!L12) -> 0 | M12: =MAX(Weekday!M12,Saturday!M12,Sunday!M12) -> 0 | N12: =MAX(Weekday!N12,Saturday!N12,Sunday!N12) -> 0 | O12: =MAX(Weekday!O12,Saturday!O12,Sunday!O12) -> 0 | P12: =MAX(D12:F12) -> 0 | Q12: =MAX(G12:I12) -> 0 | R12: =MAX(J12:L12) -> 0 | S12: =MAX(M12:O12) -> 0 | T12: =MAX(P12:S12) -> 0 | U12: =U10+1 -> 115
A13: =A12+1 -> 116 | C13: Midday Vehicles | D13: =MAX(Weekday!D13,Saturday!D13,Sunday!D13) -> 0 | E13: =MAX(Weekday!E13,Saturday!E13,Sunday!E13) -> 0 | F13: =MAX(Weekday!F13,Saturday!F13,Sunday!F13) -> 0 | G13: =MAX(Weekday!G13,Saturday!G13,Sunday!G13) -> 0 | H13: =MAX(Weekday!H13,Saturday!H13,Sunday!H13) -> 0 | I13: =MAX(Weekday!I13,Saturday!I13,Sunday!I13) -> 0 | J13: =MAX(Weekday!J13,Saturday!J13,Sunday!J13) -> 0 | K13: =MAX(Weekday!K13,Saturday!K13,Sunday!K13) -> 0 | L13: =MAX(Weekday!L13,Saturday!L13,Sunday!L13) -> 0 | M13: =MAX(Weekday!M13,Saturday!M13,Sunday!M13) -> 0 | N13: =MAX(Weekday!N13,Saturday!N13,Sunday!N13) -> 0 | O13: =MAX(Weekday!O13,Saturday!O13,Sunday!O13) -> 0 | P13: =MAX(D13:F13) -> 0 | Q13: =MAX(G13:I13) -> 0 | R13: =MAX(J13:L13) -> 0 | S13: =MAX(M13:O13) -> 0 | T13: =MAX(P13:S13) -> 0 | U13: =U12+1 -> 116
A14: =A13+1 -> 117 | C14: Total Unlinked Passenger Trips | D14: =Weekday!D14+Saturday!D14+Sunday!D14 -> 0 | E14: =Weekday!E14+Saturday!E14+Sunday!E14 -> 0 | F14: =Weekday!F14+Saturday!F14+Sunday!F14 -> 0 | G14: =Weekday!G14+Saturday!G14+Sunday!G14 -> 0 | H14: =Weekday!H14+Saturday!H14+Sunday!H14 -> 0 | I14: =Weekday!I14+Saturday!I14+Sunday!I14 -> 0 | J14: =Weekday!J14+Saturday!J14+Sunday!J14 -> 0 | K14: =Weekday!K14+Saturday!K14+Sunday!K14 -> 0 | L14: =Weekday!L14+Saturday!L14+Sunday!L14 -> 0 | M14: =Weekday!M14+Saturday!M14+Sunday!M14 -> 0 | N14: =Weekday!N14+Saturday!N14+Sunday!N14 -> 0 | O14: =Weekday!O14+Saturday!O14+Sunday!O14 -> 0 | P14: =D14+E14+F14 -> 0 | Q14: =G14+H14+I14 -> 0 | R14: =J14+K14+L14 -> 0 | S14: =M14+N14+O14 -> 0 | T14: =SUM(D14:O14) -> 0 | U14: =U13+1 -> 117
A15: =A14+1 -> 118 | C15: Vehicle Revenue Miles | D15: =Weekday!D15+Saturday!D15+Sunday!D15 -> 0 | E15: =Weekday!E15+Saturday!E15+Sunday!E15 -> 0 | F15: =Weekday!F15+Saturday!F15+Sunday!F15 -> 0 | G15: =Weekday!G15+Saturday!G15+Sunday!G15 -> 0 | H15: =Weekday!H15+Saturday!H15+Sunday!H15 -> 0 | I15: =Weekday!I15+Saturday!I15+Sunday!I15 -> 0 | J15: =Weekday!J15+Saturday!J15+Sunday!J15 -> 0 | K15: =Weekday!K15+Saturday!K15+Sunday!K15 -> 0 | L15: =Weekday!L15+Saturday!L15+Sunday!L15 -> 0 | M15: =Weekday!M15+Saturday!M15+Sunday!M15 -> 0 | N15: =Weekday!N15+Saturday!N15+Sunday!N15 -> 0 | O15: =Weekday!O15+Saturday!O15+Sunday!O15 -> 0 | P15: =D15+E15+F15 -> 0 | Q15: =G15+H15+I15 -> 0 | R15: =J15+K15+L15 -> 0 | S15: =M15+N15+O15 -> 0 | T15: =SUM(D15:O15) -> 0 | U15: =U14+1 -> 118
A16: =A15+1 -> 119 | C16: Vehicle Revenue Hours | D16: =Weekday!D16+Saturday!D16+Sunday!D16 -> 0 | E16: =Weekday!E16+Saturday!E16+Sunday!E16 -> 0 | F16: =Weekday!F16+Saturday!F16+Sunday!F16 -> 0 | G16: =Weekday!G16+Saturday!G16+Sunday!G16 -> 0 | H16: =Weekday!H16+Saturday!H16+Sunday!H16 -> 0 | I16: =Weekday!I16+Saturday!I16+Sunday!I16 -> 0 | J16: =Weekday!J16+Saturday!J16+Sunday!J16 -> 0 | K16: =Weekday!K16+Saturday!K16+Sunday!K16 -> 0 | L16: =Weekday!L16+Saturday!L16+Sunday!L16 -> 0 | M16: =Weekday!M16+Saturday!M16+Sunday!M16 -> 0 | N16: =Weekday!N16+Saturday!N16+Sunday!N16 -> 0 | O16: =Weekday!O16+Saturday!O16+Sunday!O16 -> 0 | P16: =D16+E16+F16 -> 0 | Q16: =G16+H16+I16 -> 0 | R16: =J16+K16+L16 -> 0 | S16: =M16+N16+O16 -> 0 | T16: =SUM(D16:O16) -> 0 | U16: =U15+1 -> 119
B17: Light Rail
A18: =A16+1 -> 120 | C18: AM/PM Peak Period Trains | D18: =MAX(Weekday!D18,Saturday!D18,Sunday!D18) -> 0 | E18: =MAX(Weekday!E18,Saturday!E18,Sunday!E18) -> 0 | F18: =MAX(Weekday!F18,Saturday!F18,Sunday!F18) -> 0 | G18: =MAX(Weekday!G18,Saturday!G18,Sunday!G18) -> 0 | H18: =MAX(Weekday!H18,Saturday!H18,Sunday!H18) -> 0 | I18: =MAX(Weekday!I18,Saturday!I18,Sunday!I18) -> 0 | J18: =MAX(Weekday!J18,Saturday!J18,Sunday!J18) -> 0 | K18: =MAX(Weekday!K18,Saturday!K18,Sunday!K18) -> 0 | L18: =MAX(Weekday!L18,Saturday!L18,Sunday!L18) -> 0 | M18: =MAX(Weekday!M18,Saturday!M18,Sunday!M18) -> 0 | N18: =MAX(Weekday!N18,Saturday!N18,Sunday!N18) -> 0 | O18: =MAX(Weekday!O18,Saturday!O18,Sunday!O18) -> 0 | P18: =MAX(D18:F18) -> 0 | Q18: =MAX(G18:I18) -> 0 | R18: =MAX(J18:L18) -> 0 | S18: =MAX(M18:O18) -> 0 | T18: =MAX(P18:S18) -> 0 | U18: =U16+1 -> 120
A19: =A18+1 -> 121 | C19: Midday Trains | D19: =MAX(Weekday!D19,Saturday!D19,Sunday!D19) -> 0 | E19: =MAX(Weekday!E19,Saturday!E19,Sunday!E19) -> 0 | F19: =MAX(Weekday!F19,Saturday!F19,Sunday!F19) -> 0 | G19: =MAX(Weekday!G19,Saturday!G19,Sunday!G19) -> 0 | H19: =MAX(Weekday!H19,Saturday!H19,Sunday!H19) -> 0 | I19: =MAX(Weekday!I19,Saturday!I19,Sunday!I19) -> 0 | J19: =MAX(Weekday!J19,Saturday!J19,Sunday!J19) -> 0 | K19: =MAX(Weekday!K19,Saturday!K19,Sunday!K19) -> 0 | L19: =MAX(Weekday!L19,Saturday!L19,Sunday!L19) -> 0 | M19: =MAX(Weekday!M19,Saturday!M19,Sunday!M19) -> 0 | N19: =MAX(Weekday!N19,Saturday!N19,Sunday!N19) -> 0 | O19: =MAX(Weekday!O19,Saturday!O19,Sunday!O19) -> 0 | P19: =MAX(D19:F19) -> 0 | Q19: =MAX(G19:I19) -> 0 | R19: =MAX(J19:L19) -> 0 | S19: =MAX(M19:O19) -> 0 | T19: =MAX(P19:S19) -> 0 | U19: =U18+1 -> 121
A20: =A19+1 -> 122 | C20: Total Unlinked Passenger Trips | D20: =Weekday!D20+Saturday!D20+Sunday!D20 -> 0 | E20: =Weekday!E20+Saturday!E20+Sunday!E20 -> 0 | F20: =Weekday!F20+Saturday!F20+Sunday!F20 -> 0 | G20: =Weekday!G20+Saturday!G20+Sunday!G20 -> 0 | H20: =Weekday!H20+Saturday!H20+Sunday!H20 -> 0 | I20: =Weekday!I20+Saturday!I20+Sunday!I20 -> 0 | J20: =Weekday!J20+Saturday!J20+Sunday!J20 -> 0 | K20: =Weekday!K20+Saturday!K20+Sunday!K20 -> 0 | L20: =Weekday!L20+Saturday!L20+Sunday!L20 -> 0 | M20: =Weekday!M20+Saturday!M20+Sunday!M20 -> 0 | N20: =Weekday!N20+Saturday!N20+Sunday!N20 -> 0 | O20: =Weekday!O20+Saturday!O20+Sunday!O20 -> 0 | P20: =D20+E20+F20 -> 0 | Q20: =G20+H20+I20 -> 0 | R20: =J20+K20+L20 -> 0 | S20: =M20+N20+O20 -> 0 | T20: =SUM(D20:O20) -> 0 | U20: =U19+1 -> 122
A21: =A20+1 -> 123 | C21: Train Revenue Miles | D21: =Weekday!D21+Saturday!D21+Sunday!D21 -> 0 | E21: =Weekday!E21+Saturday!E21+Sunday!E21 -> 0 | F21: =Weekday!F21+Saturday!F21+Sunday!F21 -> 0 | G21: =Weekday!G21+Saturday!G21+Sunday!G21 -> 0 | H21: =Weekday!H21+Saturday!H21+Sunday!H21 -> 0 | I21: =Weekday!I21+Saturday!I21+Sunday!I21 -> 0 | J21: =Weekday!J21+Saturday!J21+Sunday!J21 -> 0 | K21: =Weekday!K21+Saturday!K21+Sunday!K21 -> 0 | L21: =Weekday!L21+Saturday!L21+Sunday!L21 -> 0 | M21: =Weekday!M21+Saturday!M21+Sunday!M21 -> 0 | N21: =Weekday!N21+Saturday!N21+Sunday!N21 -> 0 | O21: =Weekday!O21+Saturday!O21+Sunday!O21 -> 0 | P21: =D21+E21+F21 -> 0 | Q21: =G21+H21+I21 -> 0 | R21: =J21+K21+L21 -> 0 | S21: =M21+N21+O21 -> 0 | T21: =SUM(D21:O21) -> 0 | U21: =U20+1 -> 123
A22: =A21+1 -> 124 | C22: Train Revenue Hours | D22: =Weekday!D22+Saturday!D22+Sunday!D22 -> 0 | E22: =Weekday!E22+Saturday!E22+Sunday!E22 -> 0 | F22: =Weekday!F22+Saturday!F22+Sunday!F22 -> 0 | G22: =Weekday!G22+Saturday!G22+Sunday!G22 -> 0 | H22: =Weekday!H22+Saturday!H22+Sunday!H22 -> 0 | I22: =Weekday!I22+Saturday!I22+Sunday!I22 -> 0 | J22: =Weekday!J22+Saturday!J22+Sunday!J22 -> 0 | K22: =Weekday!K22+Saturday!K22+Sunday!K22 -> 0 | L22: =Weekday!L22+Saturday!L22+Sunday!L22 -> 0 | M22: =Weekday!M22+Saturday!M22+Sunday!M22 -> 0 | N22: =Weekday!N22+Saturday!N22+Sunday!N22 -> 0 | O22: =Weekday!O22+Saturday!O22+Sunday!O22 -> 0 | P22: =D22+E22+F22 -> 0 | Q22: =G22+H22+I22 -> 0 | R22: =J22+K22+L22 -> 0 | S22: =M22+N22+O22 -> 0 | T22: =SUM(D22:O22) -> 0 | U22: =U21+1 -> 124
B23: Street Car
A24: =A22+1 -> 125 | C24: AM/PM Peak Period Vehicles | D24: =MAX(Weekday!D24,Saturday!D24,Sunday!D24) -> 0 | E24: =MAX(Weekday!E24,Saturday!E24,Sunday!E24) -> 0 | F24: =MAX(Weekday!F24,Saturday!F24,Sunday!F24) -> 0 | G24: =MAX(Weekday!G24,Saturday!G24,Sunday!G24) -> 0 | H24: =MAX(Weekday!H24,Saturday!H24,Sunday!H24) -> 0 | I24: =MAX(Weekday!I24,Saturday!I24,Sunday!I24) -> 0 | J24: =MAX(Weekday!J24,Saturday!J24,Sunday!J24) -> 0 | K24: =MAX(Weekday!K24,Saturday!K24,Sunday!K24) -> 0 | L24: =MAX(Weekday!L24,Saturday!L24,Sunday!L24) -> 0 | M24: =MAX(Weekday!M24,Saturday!M24,Sunday!M24) -> 0 | N24: =MAX(Weekday!N24,Saturday!N24,Sunday!N24) -> 0 | O24: =MAX(Weekday!O24,Saturday!O24,Sunday!O24) -> 0 | P24: =MAX(D24:F24) -> 0 | Q24: =MAX(G24:I24) -> 0 | R24: =MAX(J24:L24) -> 0 | S24: =MAX(M24:O24) -> 0 | T24: =MAX(P24:S24) -> 0 | U24: =U22+1 -> 125
A25: =A24+1 -> 126 | C25: Midday Vehicles | D25: =MAX(Weekday!D25,Saturday!D25,Sunday!D25) -> 0 | E25: =MAX(Weekday!E25,Saturday!E25,Sunday!E25) -> 0 | F25: =MAX(Weekday!F25,Saturday!F25,Sunday!F25) -> 0 | G25: =MAX(Weekday!G25,Saturday!G25,Sunday!G25) -> 0 | H25: =MAX(Weekday!H25,Saturday!H25,Sunday!H25) -> 0 | I25: =MAX(Weekday!I25,Saturday!I25,Sunday!I25) -> 0 | J25: =MAX(Weekday!J25,Saturday!J25,Sunday!J25) -> 0 | K25: =MAX(Weekday!K25,Saturday!K25,Sunday!K25) -> 0 | L25: =MAX(Weekday!L25,Saturday!L25,Sunday!L25) -> 0 | M25: =MAX(Weekday!M25,Saturday!M25,Sunday!M25) -> 0 | N25: =MAX(Weekday!N25,Saturday!N25,Sunday!N25) -> 0 | O25: =MAX(Weekday!O25,Saturday!O25,Sunday!O25) -> 0 | P25: =MAX(D25:F25) -> 0 | Q25: =MAX(G25:I25) -> 0 | R25: =MAX(J25:L25) -> 0 | S25: =MAX(M25:O25) -> 0 | T25: =MAX(P25:S25) -> 0 | U25: =U24+1 -> 126
A26: =A25+1 -> 127 | C26: Total Unlinked Passenger Trips | D26: =Weekday!D26+Saturday!D26+Sunday!D26 -> 0 | E26: =Weekday!E26+Saturday!E26+Sunday!E26 -> 0 | F26: =Weekday!F26+Saturday!F26+Sunday!F26 -> 0 | G26: =Weekday!G26+Saturday!G26+Sunday!G26 -> 0 | H26: =Weekday!H26+Saturday!H26+Sunday!H26 -> 0 | I26: =Weekday!I26+Saturday!I26+Sunday!I26 -> 0 | J26: =Weekday!J26+Saturday!J26+Sunday!J26 -> 0 | K26: =Weekday!K26+Saturday!K26+Sunday!K26 -> 0 | L26: =Weekday!L26+Saturday!L26+Sunday!L26 -> 0 | M26: =Weekday!M26+Saturday!M26+Sunday!M26 -> 0 | N26: =Weekday!N26+Saturday!N26+Sunday!N26 -> 0 | O26: =Weekday!O26+Saturday!O26+Sunday!O26 -> 0 | P26: =D26+E26+F26 -> 0 | Q26: =G26+H26+I26 -> 0 | R26: =J26+K26+L26 -> 0 | S26: =M26+N26+O26 -> 0 | T26: =SUM(D26:O26) -> 0 | U26: =U25+1 -> 127
A27: =A26+1 -> 128 | C27: Vehicle Revenue Miles | D27: =Weekday!D27+Saturday!D27+Sunday!D27 -> 0 | E27: =Weekday!E27+Saturday!E27+Sunday!E27 -> 0 | F27: =Weekday!F27+Saturday!F27+Sunday!F27 -> 0 | G27: =Weekday!G27+Saturday!G27+Sunday!G27 -> 0 | H27: =Weekday!H27+Saturday!H27+Sunday!H27 -> 0 | I27: =Weekday!I27+Saturday!I27+Sunday!I27 -> 0 | J27: =Weekday!J27+Saturday!J27+Sunday!J27 -> 0 | K27: =Weekday!K27+Saturday!K27+Sunday!K27 -> 0 | L27: =Weekday!L27+Saturday!L27+Sunday!L27 -> 0 | M27: =Weekday!M27+Saturday!M27+Sunday!M27 -> 0 | N27: =Weekday!N27+Saturday!N27+Sunday!N27 -> 0 | O27: =Weekday!O27+Saturday!O27+Sunday!O27 -> 0 | P27: =D27+E27+F27 -> 0 | Q27: =G27+H27+I27 -> 0 | R27: =J27+K27+L27 -> 0 | S27: =M27+N27+O27 -> 0 | T27: =SUM(D27:O27) -> 0 | U27: =U26+1 -> 128
A28: =A27+1 -> 129 | C28: Vehicle Revenue Hours | D28: =Weekday!D28+Saturday!D28+Sunday!D28 -> 0 | E28: =Weekday!E28+Saturday!E28+Sunday!E28 -> 0 | F28: =Weekday!F28+Saturday!F28+Sunday!F28 -> 0 | G28: =Weekday!G28+Saturday!G28+Sunday!G28 -> 0 | H28: =Weekday!H28+Saturday!H28+Sunday!H28 -> 0 | I28: =Weekday!I28+Saturday!I28+Sunday!I28 -> 0 | J28: =Weekday!J28+Saturday!J28+Sunday!J28 -> 0 | K28: =Weekday!K28+Saturday!K28+Sunday!K28 -> 0 | L28: =Weekday!L28+Saturday!L28+Sunday!L28 -> 0 | M28: =Weekday!M28+Saturday!M28+Sunday!M28 -> 0 | N28: =Weekday!N28+Saturday!N28+Sunday!N28 -> 0 | O28: =Weekday!O28+Saturday!O28+Sunday!O28 -> 0 | P28: =D28+E28+F28 -> 0 | Q28: =G28+H28+I28 -> 0 | R28: =J28+K28+L28 -> 0 | S28: =M28+N28+O28 -> 0 | T28: =SUM(D28:O28) -> 0 | U28: =U27+1 -> 129
B29: Vanpool
A30: =A28+1 -> 130 | C30: AM/PM Peak Period Vehicles | D30: =MAX(Weekday!D30,Saturday!D30,Sunday!D30) -> 0 | E30: =MAX(Weekday!E30,Saturday!E30,Sunday!E30) -> 0 | F30: =MAX(Weekday!F30,Saturday!F30,Sunday!F30) -> 0 | G30: =MAX(Weekday!G30,Saturday!G30,Sunday!G30) -> 0 | H30: =MAX(Weekday!H30,Saturday!H30,Sunday!H30) -> 0 | I30: =MAX(Weekday!I30,Saturday!I30,Sunday!I30) -> 0 | J30: =MAX(Weekday!J30,Saturday!J30,Sunday!J30) -> 0 | K30: =MAX(Weekday!K30,Saturday!K30,Sunday!K30) -> 0 | L30: =MAX(Weekday!L30,Saturday!L30,Sunday!L30) -> 0 | M30: =MAX(Weekday!M30,Saturday!M30,Sunday!M30) -> 0 | N30: =MAX(Weekday!N30,Saturday!N30,Sunday!N30) -> 0 | O30: =MAX(Weekday!O30,Saturday!O30,Sunday!O30) -> 0 | P30: =MAX(D30:F30) -> 0 | Q30: =MAX(G30:I30) -> 0 | R30: =MAX(J30:L30) -> 0 | S30: =MAX(M30:O30) -> 0 | T30: =MAX(P30:S30) -> 0 | U30: =U28+1 -> 130
A31: =A30+1 -> 131 | C31: Midday Vehicles | D31: =MAX(Weekday!D31,Saturday!D31,Sunday!D31) -> 0 | E31: =MAX(Weekday!E31,Saturday!E31,Sunday!E31) -> 0 | F31: =MAX(Weekday!F31,Saturday!F31,Sunday!F31) -> 0 | G31: =MAX(Weekday!G31,Saturday!G31,Sunday!G31) -> 0 | H31: =MAX(Weekday!H31,Saturday!H31,Sunday!H31) -> 0 | I31: =MAX(Weekday!I31,Saturday!I31,Sunday!I31) -> 0 | J31: =MAX(Weekday!J31,Saturday!J31,Sunday!J31) -> 0 | K31: =MAX(Weekday!K31,Saturday!K31,Sunday!K31) -> 0 | L31: =MAX(Weekday!L31,Saturday!L31,Sunday!L31) -> 0 | M31: =MAX(Weekday!M31,Saturday!M31,Sunday!M31) -> 0 | N31: =MAX(Weekday!N31,Saturday!N31,Sunday!N31) -> 0 | O31: =MAX(Weekday!O31,Saturday!O31,Sunday!O31) -> 0 | P31: =MAX(D31:F31) -> 0 | Q31: =MAX(G31:I31) -> 0 | R31: =MAX(J31:L31) -> 0 | S31: =MAX(M31:O31) -> 0 | T31: =MAX(P31:S31) -> 0 | U31: =U30+1 -> 131
A32: =A31+1 -> 132 | C32: Total Unlinked Passenger Trips | D32: =Weekday!D32+Saturday!D32+Sunday!D32 -> 0 | E32: =Weekday!E32+Saturday!E32+Sunday!E32 -> 0 | F32: =Weekday!F32+Saturday!F32+Sunday!F32 -> 0 | G32: =Weekday!G32+Saturday!G32+Sunday!G32 -> 0 | H32: =Weekday!H32+Saturday!H32+Sunday!H32 -> 0 | I32: =Weekday!I32+Saturday!I32+Sunday!I32 -> 0 | J32: =Weekday!J32+Saturday!J32+Sunday!J32 -> 0 | K32: =Weekday!K32+Saturday!K32+Sunday!K32 -> 0 | L32: =Weekday!L32+Saturday!L32+Sunday!L32 -> 0 | M32: =Weekday!M32+Saturday!M32+Sunday!M32 -> 0 | N32: =Weekday!N32+Saturday!N32+Sunday!N32 -> 0 | O32: =Weekday!O32+Saturday!O32+Sunday!O32 -> 0 | P32: =D32+E32+F32 -> 0 | Q32: =G32+H32+I32 -> 0 | R32: =J32+K32+L32 -> 0 | S32: =M32+N32+O32 -> 0 | T32: =SUM(D32:O32) -> 0 | U32: =U31+1 -> 132
A33: =A32+1 -> 133 | C33: Vehicle Revenue Miles | D33: =Weekday!D33+Saturday!D33+Sunday!D33 -> 0 | E33: =Weekday!E33+Saturday!E33+Sunday!E33 -> 0 | F33: =Weekday!F33+Saturday!F33+Sunday!F33 -> 0 | G33: =Weekday!G33+Saturday!G33+Sunday!G33 -> 0 | H33: =Weekday!H33+Saturday!H33+Sunday!H33 -> 0 | I33: =Weekday!I33+Saturday!I33+Sunday!I33 -> 0 | J33: =Weekday!J33+Saturday!J33+Sunday!J33 -> 0 | K33: =Weekday!K33+Saturday!K33+Sunday!K33 -> 0 | L33: =Weekday!L33+Saturday!L33+Sunday!L33 -> 0 | M33: =Weekday!M33+Saturday!M33+Sunday!M33 -> 0 | N33: =Weekday!N33+Saturday!N33+Sunday!N33 -> 0 | O33: =Weekday!O33+Saturday!O33+Sunday!O33 -> 0 | P33: =D33+E33+F33 -> 0 | Q33: =G33+H33+I33 -> 0 | R33: =J33+K33+L33 -> 0 | S33: =M33+N33+O33 -> 0 | T33: =SUM(D33:O33) -> 0 | U33: =U32+1 -> 133
A34: =A33+1 -> 134 | C34: Vehicle Revenue Hours | D34: =Weekday!D34+Saturday!D34+Sunday!D34 -> 0 | E34: =Weekday!E34+Saturday!E34+Sunday!E34 -> 0 | F34: =Weekday!F34+Saturday!F34+Sunday!F34 -> 0 | G34: =Weekday!G34+Saturday!G34+Sunday!G34 -> 0 | H34: =Weekday!H34+Saturday!H34+Sunday!H34 -> 0 | I34: =Weekday!I34+Saturday!I34+Sunday!I34 -> 0 | J34: =Weekday!J34+Saturday!J34+Sunday!J34 -> 0 | K34: =Weekday!K34+Saturday!K34+Sunday!K34 -> 0 | L34: =Weekday!L34+Saturday!L34+Sunday!L34 -> 0 | M34: =Weekday!M34+Saturday!M34+Sunday!M34 -> 0 | N34: =Weekday!N34+Saturday!N34+Sunday!N34 -> 0 | O34: =Weekday!O34+Saturday!O34+Sunday!O34 -> 0 | P34: =D34+E34+F34 -> 0 | Q34: =G34+H34+I34 -> 0 | R34: =J34+K34+L34 -> 0 | S34: =M34+N34+O34 -> 0 | T34: =SUM(D34:O34) -> 0 | U34: =U33+1 -> 134
B35: Microtransit
A36: =A34+1 -> 135 | C36: AM/PM Peak Period Vehicles | D36: =MAX(Weekday!D36,Saturday!D36,Sunday!D36) -> 0 | E36: =MAX(Weekday!E36,Saturday!E36,Sunday!E36) -> 0 | F36: =MAX(Weekday!F36,Saturday!F36,Sunday!F36) -> 0 | G36: =MAX(Weekday!G36,Saturday!G36,Sunday!G36) -> 0 | H36: =MAX(Weekday!H36,Saturday!H36,Sunday!H36) -> 0 | I36: =MAX(Weekday!I36,Saturday!I36,Sunday!I36) -> 0 | J36: =MAX(Weekday!J36,Saturday!J36,Sunday!J36) -> 0 | K36: =MAX(Weekday!K36,Saturday!K36,Sunday!K36) -> 0 | L36: =MAX(Weekday!L36,Saturday!L36,Sunday!L36) -> 0 | M36: =MAX(Weekday!M36,Saturday!M36,Sunday!M36) -> 0 | N36: =MAX(Weekday!N36,Saturday!N36,Sunday!N36) -> 0 | O36: =MAX(Weekday!O36,Saturday!O36,Sunday!O36) -> 0 | P36: =MAX(D36:F36) -> 0 | Q36: =MAX(G36:I36) -> 0 | R36: =MAX(J36:L36) -> 0 | S36: =MAX(M36:O36) -> 0 | T36: =MAX(P36:S36) -> 0 | U36: =U34+1 -> 135
A37: =A36+1 -> 136 | C37: Midday Vehicles | D37: =MAX(Weekday!D37,Saturday!D37,Sunday!D37) -> 0 | E37: =MAX(Weekday!E37,Saturday!E37,Sunday!E37) -> 0 | F37: =MAX(Weekday!F37,Saturday!F37,Sunday!F37) -> 0 | G37: =MAX(Weekday!G37,Saturday!G37,Sunday!G37) -> 0 | H37: =MAX(Weekday!H37,Saturday!H37,Sunday!H37) -> 0 | I37: =MAX(Weekday!I37,Saturday!I37,Sunday!I37) -> 0 | J37: =MAX(Weekday!J37,Saturday!J37,Sunday!J37) -> 0 | K37: =MAX(Weekday!K37,Saturday!K37,Sunday!K37) -> 0 | L37: =MAX(Weekday!L37,Saturday!L37,Sunday!L37) -> 0 | M37: =MAX(Weekday!M37,Saturday!M37,Sunday!M37) -> 0 | N37: =MAX(Weekday!N37,Saturday!N37,Sunday!N37) -> 0 | O37: =MAX(Weekday!O37,Saturday!O37,Sunday!O37) -> 0 | P37: =MAX(D37:F37) -> 0 | Q37: =MAX(G37:I37) -> 0 | R37: =MAX(J37:L37) -> 0 | S37: =MAX(M37:O37) -> 0 | T37: =MAX(P37:S37) -> 0 | U37: =U36+1 -> 136
A38: =A37+1 -> 137 | C38: Total Unlinked Passenger Trips | D38: =Weekday!D38+Saturday!D38+Sunday!D38 -> 0 | E38: =Weekday!E38+Saturday!E38+Sunday!E38 -> 0 | F38: =Weekday!F38+Saturday!F38+Sunday!F38 -> 0 | G38: =Weekday!G38+Saturday!G38+Sunday!G38 -> 0 | H38: =Weekday!H38+Saturday!H38+Sunday!H38 -> 0 | I38: =Weekday!I38+Saturday!I38+Sunday!I38 -> 0 | J38: =Weekday!J38+Saturday!J38+Sunday!J38 -> 0 | K38: =Weekday!K38+Saturday!K38+Sunday!K38 -> 0 | L38: =Weekday!L38+Saturday!L38+Sunday!L38 -> 0 | M38: =Weekday!M38+Saturday!M38+Sunday!M38 -> 0 | N38: =Weekday!N38+Saturday!N38+Sunday!N38 -> 0 | O38: =Weekday!O38+Saturday!O38+Sunday!O38 -> 0 | P38: =D38+E38+F38 -> 0 | Q38: =G38+H38+I38 -> 0 | R38: =J38+K38+L38 -> 0 | S38: =M38+N38+O38 -> 0 | T38: =SUM(D38:O38) -> 0 | U38: =U37+1 -> 137
A39: =A38+1 -> 138 | C39: Vehicle Revenue Miles | D39: =Weekday!D39+Saturday!D39+Sunday!D39 -> 0 | E39: =Weekday!E39+Saturday!E39+Sunday!E39 -> 0 | F39: =Weekday!F39+Saturday!F39+Sunday!F39 -> 0 | G39: =Weekday!G39+Saturday!G39+Sunday!G39 -> 0 | H39: =Weekday!H39+Saturday!H39+Sunday!H39 -> 0 | I39: =Weekday!I39+Saturday!I39+Sunday!I39 -> 0 | J39: =Weekday!J39+Saturday!J39+Sunday!J39 -> 0 | K39: =Weekday!K39+Saturday!K39+Sunday!K39 -> 0 | L39: =Weekday!L39+Saturday!L39+Sunday!L39 -> 0 | M39: =Weekday!M39+Saturday!M39+Sunday!M39 -> 0 | N39: =Weekday!N39+Saturday!N39+Sunday!N39 -> 0 | O39: =Weekday!O39+Saturday!O39+Sunday!O39 -> 0 | P39: =D39+E39+F39 -> 0 | Q39: =G39+H39+I39 -> 0 | R39: =J39+K39+L39 -> 0 | S39: =M39+N39+O39 -> 0 | T39: =SUM(D39:O39) -> 0 | U39: =U38+1 -> 138
A40: =A39+1 -> 139 | C40: Vehicle Revenue Hours | D40: =Weekday!D40+Saturday!D40+Sunday!D40 -> 0 | E40: =Weekday!E40+Saturday!E40+Sunday!E40 -> 0 | F40: =Weekday!F40+Saturday!F40+Sunday!F40 -> 0 | G40: =Weekday!G40+Saturday!G40+Sunday!G40 -> 0 | H40: =Weekday!H40+Saturday!H40+Sunday!H40 -> 0 | I40: =Weekday!I40+Saturday!I40+Sunday!I40 -> 0 | J40: =Weekday!J40+Saturday!J40+Sunday!J40 -> 0 | K40: =Weekday!K40+Saturday!K40+Sunday!K40 -> 0 | L40: =Weekday!L40+Saturday!L40+Sunday!L40 -> 0 | M40: =Weekday!M40+Saturday!M40+Sunday!M40 -> 0 | N40: =Weekday!N40+Saturday!N40+Sunday!N40 -> 0 | O40: =Weekday!O40+Saturday!O40+Sunday!O40 -> 0 | P40: =D40+E40+F40 -> 0 | Q40: =G40+H40+I40 -> 0 | R40: =J40+K40+L40 -> 0 | S40: =M40+N40+O40 -> 0 | T40: =SUM(D40:O40) -> 0 | U40: =U39+1 -> 139
D41: A | E41: B | F41: C | G41: D | H41: E | I41: F | J41: G | K41: H | L41: I | M41: J | N41: K | O41: L

Sheet Dashboard (hidden)
B1: Transit Performace Dashboard
A3: Passenger Trips By Month
A33: Revenue per Hour
C35: Fixed Route Passengers per Operating Day | U35: Dial-A-Ride Passnegers per Operating Day | AL35: Transit Passengers Per Operating Day (Weekly) | BA35: Street car Passengers Per Operating Day | BR35: Van Pool Passengers Per Operating Day | CI35: Street car Passengers Per Operating Day
C36: Month | D36: July | E36: August | F36: September | G36: October | H36: November | I36: December | J36: January | K36: February | L36: March | M36: April | N36: May | O36: June | U36: Month | V36: July | W36: August | X36: September | Y36: October | Z36: November | AA36: December | AB36: January | AC36: February | AD36: March | AE36: April | AF36: May | AG36: June | AL36: Month | AM36: July | AN36: August | AO36: September | AP36: October | AQ36: November | AR36: December | AS36: January | AT36: February | AU36: March | AV36: April | AW36: May | AX36: June | BA36: Month | BB36: July | BC36: August | BD36: September | BE36: October | BF36: November | BG36: December | BH36: January | BI36: February | BJ36: March | BK36: April | BL36: May | BM36: June | BR36: Month | BS36: July | BT36: August | BU36: September | BV36: October | BW36: November | BX36: December | BY36: January | BZ36: February | CA36: March | CB36: April | CC36: May | CD36: June | CI36: Month | CJ36: July | CK36: August | CL36: September | CM36: October | CN36: November | CO36: December | CP36: January | CQ36: February | CR36: March | CS36: April | CT36: May | CU36: June
C37: Weekday | D37: =Weekday!D8/Weekday!D4 ->  | E37: =Weekday!E8/Weekday!E4 ->  | F37: =Weekday!F8/Weekday!F4 ->  | G37: =Weekday!G8/Weekday!G4 ->  | H37: =Weekday!H8/Weekday!H4 ->  | I37: =Weekday!I8/Weekday!I4 ->  | J37: =Weekday!J8/Weekday!J4 ->  | K37: =Weekday!K8/Weekday!K4 ->  | L37: =Weekday!L8/Weekday!L4 ->  | M37: =Weekday!M8/Weekday!M4 ->  | N37: =Weekday!N8/Weekday!N4 ->  | O37: =Weekday!O8/Weekday!O4 ->  | U37: Weekday | V37: =Weekday!D14/Weekday!D4 ->  | W37: =Weekday!E14/Weekday!E4 ->  | X37: =Weekday!F14/Weekday!F4 ->  | Y37: =Weekday!G14/Weekday!G4 ->  | Z37: =Weekday!H14/Weekday!H4 ->  | AA37: =Weekday!I14/Weekday!I4 ->  | AB37: =Weekday!J14/Weekday!J4 ->  | AC37: =Weekday!K14/Weekday!K4 ->  | AD37: =Weekday!L14/Weekday!L4 ->  | AE37: =Weekday!M14/Weekday!M4 ->  | AF37: =Weekday!N14/Weekday!N4 ->  | AG37: =Weekday!O14/Weekday!O4 ->  | AL37: Weekday | AM37: =Weekday!D20/Weekday!D4 ->  | AN37: =Weekday!E20/Weekday!E4 ->  | AO37: =Weekday!F20/Weekday!F4 ->  | AP37: =Weekday!G20/Weekday!G4 ->  | AQ37: =Weekday!H20/Weekday!H4 ->  | AR37: =Weekday!I20/Weekday!I4 ->  | AS37: =Weekday!J20/Weekday!J4 ->  | AT37: =Weekday!K20/Weekday!K4 ->  | AU37: =Weekday!L20/Weekday!L4 ->  | AV37: =Weekday!M20/Weekday!M4 ->  | AW37: =Weekday!N20/Weekday!N4 ->  | AX37: =Weekday!O20/Weekday!O4 ->  | BA37: Weekday | BB37: =Weekday!D26/Weekday!D4 ->  | BC37: =Weekday!E26/Weekday!E4 ->  | BD37: =Weekday!F26/Weekday!F4 ->  | BE37: =Weekday!G26/Weekday!G4 ->  | BF37: =Weekday!H26/Weekday!H4 ->  | BG37: =Weekday!I26/Weekday!I4 ->  | BH37: =Weekday!J26/Weekday!J4 ->  | BI37: =Weekday!K26/Weekday!K4 ->  | BJ37: =Weekday!L26/Weekday!L4 ->  | BK37: =Weekday!M26/Weekday!M4 ->  | BL37: =Weekday!N26/Weekday!N4 ->  | BM37: =Weekday!O26/Weekday!O4 ->  | BR37: Weekday | BS37: =Weekday!D32/Weekday!D4 ->  | BT37: =Weekday!E32/Weekday!E4 ->  | BU37: =Weekday!F32/Weekday!F4 ->  | BV37: =Weekday!G32/Weekday!G4 ->  | BW37: =Weekday!H32/Weekday!H4 ->  | BX37: =Weekday!I32/Weekday!I4 ->  | BY37: =Weekday!J32/Weekday!J4 ->  | BZ37: =Weekday!K32/Weekday!K4 ->  | CA37: =Weekday!L32/Weekday!L4 ->  | CB37: =Weekday!M32/Weekday!M4 ->  | CC37: =Weekday!N32/Weekday!N4 ->  | CD37: =Weekday!O32/Weekday!O4 ->  | CI37: Weekday | CJ37: =Weekday!D38/Weekday!D4 ->  | CK37: =Weekday!E38/Weekday!E4 ->  | CL37: =Weekday!F38/Weekday!F4 ->  | CM37: =Weekday!G38/Weekday!G4 ->  | CN37: =Weekday!H38/Weekday!H4 ->  | CO37: =Weekday!I38/Weekday!I4 ->  | CP37: =Weekday!J38/Weekday!J4 ->  | CQ37: =Weekday!K38/Weekday!K4 ->  | CR37: =Weekday!L38/Weekday!L4 ->  | CS37: =Weekday!M38/Weekday!M4 ->  | CT37: =Weekday!N38/Weekday!N4 ->  | CU37: =Weekday!O38/Weekday!O4 -> 
C38: Saturday | D38: =Saturday!D8/Saturday!D4 ->  | E38: =Saturday!E8/Saturday!E4 ->  | F38: =Saturday!F8/Saturday!F4 ->  | G38: =Saturday!G8/Saturday!G4 ->  | H38: =Saturday!H8/Saturday!H4 ->  | I38: =Saturday!I8/Saturday!I4 ->  | J38: =Saturday!J8/Saturday!J4 ->  | K38: =Saturday!K8/Saturday!K4 ->  | L38: =Saturday!L8/Saturday!L4 ->  | M38: =Saturday!M8/Saturday!M4 ->  | N38: =Saturday!N8/Saturday!N4 ->  | O38: =Saturday!O8/Saturday!O4 ->  | U38: Saturday | V38: =Saturday!D14/Saturday!D4 ->  | W38: =Saturday!E14/Saturday!E4 ->  | X38: =Saturday!F14/Saturday!F4 ->  | Y38: =Saturday!G14/Saturday!G4 ->  | Z38: =Saturday!H14/Saturday!H4 ->  | AA38: =Saturday!I14/Saturday!I4 ->  | AB38: =Saturday!J14/Saturday!J4 ->  | AC38: =Saturday!K14/Saturday!K4 ->  | AD38: =Saturday!L14/Saturday!L4 ->  | AE38: =Saturday!M14/Saturday!M4 ->  | AF38: =Saturday!N14/Saturday!N4 ->  | AG38: =Saturday!O14/Saturday!O4 ->  | AL38: Saturday | AM38: =Saturday!D20/Saturday!D4 ->  | AN38: =Saturday!E20/Saturday!E4 ->  | AO38: =Saturday!F20/Saturday!F4 ->  | AP38: =Saturday!G20/Saturday!G4 ->  | AQ38: =Saturday!H20/Saturday!H4 ->  | AR38: =Saturday!I20/Saturday!I4 ->  | AS38: =Saturday!J20/Saturday!J4 ->  | AT38: =Saturday!K20/Saturday!K4 ->  | AU38: =Saturday!L20/Saturday!L4 ->  | AV38: =Saturday!M20/Saturday!M4 ->  | AW38: =Saturday!N20/Saturday!N4 ->  | AX38: =Saturday!O20/Saturday!O4 ->  | BA38: Saturday | BB38: =Saturday!D26/Saturday!D4 ->  | BC38: =Saturday!E26/Saturday!E4 ->  | BD38: =Saturday!F26/Saturday!F4 ->  | BE38: =Saturday!G26/Saturday!G4 ->  | BF38: =Saturday!H26/Saturday!H4 ->  | BG38: =Saturday!I26/Saturday!I4 ->  | BH38: =Saturday!J26/Saturday!J4 ->  | BI38: =Saturday!K26/Saturday!K4 ->  | BJ38: =Saturday!L26/Saturday!L4 ->  | BK38: =Saturday!M26/Saturday!M4 ->  | BL38: =Saturday!N26/Saturday!N4 ->  | BM38: =Saturday!O26/Saturday!O4 ->  | BR38: Saturday | BS38: =Saturday!D32/Saturday!D4 ->  | BT38: =Saturday!E32/Saturday!E4 ->  | BU38: =Saturday!F32/Saturday!F4 ->  | BV38: =Saturday!G32/Saturday!G4 ->  | BW38: =Saturday!H32/Saturday!H4 ->  | BX38: =Saturday!I32/Saturday!I4 ->  | BY38: =Saturday!J32/Saturday!J4 ->  | BZ38: =Saturday!K32/Saturday!K4 ->  | CA38: =Saturday!L32/Saturday!L4 ->  | CB38: =Saturday!M32/Saturday!M4 ->  | CC38: =Saturday!N32/Saturday!N4 ->  | CD38: =Saturday!O32/Saturday!O4 ->  | CI38: Saturday | CJ38: =Saturday!D38/Saturday!D4 ->  | CK38: =Saturday!E38/Saturday!E4 ->  | CL38: =Saturday!F38/Saturday!F4 ->  | CM38: =Saturday!G38/Saturday!G4 ->  | CN38: =Saturday!H38/Saturday!H4 ->  | CO38: =Saturday!I38/Saturday!I4 ->  | CP38: =Saturday!J38/Saturday!J4 ->  | CQ38: =Saturday!K38/Saturday!K4 ->  | CR38: =Saturday!L38/Saturday!L4 ->  | CS38: =Saturday!M38/Saturday!M4 ->  | CT38: =Saturday!N38/Saturday!N4 ->  | CU38: =Saturday!O38/Saturday!O4 -> 
C39: Sunday | D39: =Sunday!D8/Sunday!D4 ->  | E39: =Sunday!E8/Sunday!E4 ->  | F39: =Sunday!F8/Sunday!F4 ->  | G39: =Sunday!G8/Sunday!G4 ->  | H39: =Sunday!H8/Sunday!H4 ->  | I39: =Sunday!I8/Sunday!I4 ->  | J39: =Sunday!J8/Sunday!J4 ->  | K39: =Sunday!K8/Sunday!K4 ->  | L39: =Sunday!L8/Sunday!L4 ->  | M39: =Sunday!M8/Sunday!M4 ->  | N39: =Sunday!N8/Sunday!N4 ->  | O39: =Sunday!O8/Sunday!O4 ->  | U39: Sunday | V39: =Sunday!D14/Sunday!D4 ->  | W39: =Sunday!E14/Sunday!E4 ->  | X39: =Sunday!F14/Sunday!F4 ->  | Y39: =Sunday!G14/Sunday!G4 ->  | Z39: =Sunday!H14/Sunday!H4 ->  | AA39: =Sunday!I14/Sunday!I4 ->  | AB39: =Sunday!J14/Sunday!J4 ->  | AC39: =Sunday!K14/Sunday!K4 ->  | AD39: =Sunday!L14/Sunday!L4 ->  | AE39: =Sunday!M14/Sunday!M4 ->  | AF39: =Sunday!N14/Sunday!N4 ->  | AG39: =Sunday!O14/Sunday!O4 ->  | AL39: Sunday | AM39: =Sunday!D20/Sunday!D4 ->  | AN39: =Sunday!E20/Sunday!E4 ->  | AO39: =Sunday!F20/Sunday!F4 ->  | AP39: =Sunday!G20/Sunday!G4 ->  | AQ39: =Sunday!H20/Sunday!H4 ->  | AR39: =Sunday!I20/Sunday!I4 ->  | AS39: =Sunday!J20/Sunday!J4 ->  | AT39: =Sunday!K20/Sunday!K4 ->  | AU39: =Sunday!L20/Sunday!L4 ->  | AV39: =Sunday!M20/Sunday!M4 ->  | AW39: =Sunday!N20/Sunday!N4 ->  | AX39: =Sunday!O20/Sunday!O4 ->  | BA39: Sunday | BB39: =Sunday!D26/Sunday!D4 ->  | BC39: =Sunday!E26/Sunday!E4 ->  | BD39: =Sunday!F26/Sunday!F4 ->  | BE39: =Sunday!G26/Sunday!G4 ->  | BF39: =Sunday!H26/Sunday!H4 ->  | BG39: =Sunday!I26/Sunday!I4 ->  | BH39: =Sunday!J26/Sunday!J4 ->  | BI39: =Sunday!K26/Sunday!K4 ->  | BJ39: =Sunday!L26/Sunday!L4 ->  | BK39: =Sunday!M26/Sunday!M4 ->  | BL39: =Sunday!N26/Sunday!N4 ->  | BM39: =Sunday!O26/Sunday!O4 ->  | BR39: Sunday | BS39: =Sunday!D32/Sunday!D4 ->  | BT39: =Sunday!E32/Sunday!E4 ->  | BU39: =Sunday!F32/Sunday!F4 ->  | BV39: =Sunday!G32/Sunday!G4 ->  | BW39: =Sunday!H32/Sunday!H4 ->  | BX39: =Sunday!I32/Sunday!I4 ->  | BY39: =Sunday!J32/Sunday!J4 ->  | BZ39: =Sunday!K32/Sunday!K4 ->  | CA39: =Sunday!L32/Sunday!L4 ->  | CB39: =Sunday!M32/Sunday!M4 ->  | CC39: =Sunday!N32/Sunday!N4 ->  | CD39: =Sunday!O32/Sunday!O4 ->  | CI39: Sunday | CJ39: =Sunday!D38/Sunday!D4 ->  | CK39: =Sunday!E38/Sunday!E4 ->  | CL39: =Sunday!F38/Sunday!F4 ->  | CM39: =Sunday!G38/Sunday!G4 ->  | CN39: =Sunday!H38/Sunday!H4 ->  | CO39: =Sunday!I38/Sunday!I4 ->  | CP39: =Sunday!J38/Sunday!J4 ->  | CQ39: =Sunday!K38/Sunday!K4 ->  | CR39: =Sunday!L38/Sunday!L4 ->  | CS39: =Sunday!M38/Sunday!M4 ->  | CT39: =Sunday!N38/Sunday!N4 ->  | CU39: =Sunday!O38/Sunday!O4 -> 
A53: Passengers per Operating Day
C60: Fixed Route Pass/Hour | U60: Dial-A-Ride Pass/Hour | AL60: Light Rail Pass/Hour | BA60: Street Car Pass/Hour | BR60: Van Pool Pass/Hour | CI60: Street Car Pass/Hour
C61: Month | D61: July | E61: August | F61: September | G61: October | H61: November | I61: December | J61: January | K61: February | L61: March | M61: April | N61: May | O61: June | U61: Month | V61: July | W61: August | X61: September | Y61: October | Z61: November | AA61: December | AB61: January | AC61: February | AD61: March | AE61: April | AF61: May | AG61: June | AL61: Month | AM61: July | AN61: August | AO61: September | AP61: October | AQ61: November | AR61: December | AS61: January | AT61: February | AU61: March | AV61: April | AW61: May | AX61: June | BA61: Month | BB61: July | BC61: August | BD61: September | BE61: October | BF61: November | BG61: December | BH61: January | BI61: February | BJ61: March | BK61: April | BL61: May | BM61: June | BR61: Month | BS61: July | BT61: August | BU61: September | BV61: October | BW61: November | BX61: December | BY61: January | BZ61: February | CA61: March | CB61: April | CC61: May | CD61: June | CI61: Month | CJ61: July | CK61: August | CL61: September | CM61: October | CN61: November | CO61: December | CP61: January | CQ61: February | CR61: March | CS61: April | CT61: May | CU61: June
C62: Pass | D62: ='Weekly Totals'!D8 -> 0 | E62: ='Weekly Totals'!E8 -> 0 | F62: ='Weekly Totals'!F8 -> 0 | G62: ='Weekly Totals'!G8 -> 0 | H62: ='Weekly Totals'!H8 -> 0 | I62: ='Weekly Totals'!I8 -> 0 | J62: ='Weekly Totals'!J8 -> 0 | K62: ='Weekly Totals'!K8 -> 0 | L62: ='Weekly Totals'!L8 -> 0 | M62: ='Weekly Totals'!M8 -> 0 | N62: ='Weekly Totals'!N8 -> 0 | O62: ='Weekly Totals'!O8 -> 0 | U62: Pass | V62: ='Weekly Totals'!D14 -> 0 | W62: ='Weekly Totals'!E14 -> 0 | X62: ='Weekly Totals'!F14 -> 0 | Y62: ='Weekly Totals'!G14 -> 0 | Z62: ='Weekly Totals'!H14 -> 0 | AA62: ='Weekly Totals'!I14 -> 0 | AB62: ='Weekly Totals'!J14 -> 0 | AC62: ='Weekly Totals'!K14 -> 0 | AD62: ='Weekly Totals'!L14 -> 0 | AE62: ='Weekly Totals'!M14 -> 0 | AF62: ='Weekly Totals'!N14 -> 0 | AG62: ='Weekly Totals'!O14 -> 0 | AL62: Pass | AM62: ='Weekly Totals'!D20 -> 0 | AN62: ='Weekly Totals'!E20 -> 0 | AO62: ='Weekly Totals'!F20 -> 0 | AP62: ='Weekly Totals'!G20 -> 0 | AQ62: ='Weekly Totals'!H20 -> 0 | AR62: ='Weekly Totals'!I20 -> 0 | AS62: ='Weekly Totals'!J20 -> 0 | AT62: ='Weekly Totals'!K20 -> 0 | AU62: ='Weekly Totals'!L20 -> 0 | AV62: ='Weekly Totals'!M20 -> 0 | AW62: ='Weekly Totals'!N20 -> 0 | AX62: ='Weekly Totals'!O20 -> 0 | BA62: Pass | BB62: ='Weekly Totals'!D26 -> 0 | BC62: ='Weekly Totals'!E26 -> 0 | BD62: ='Weekly Totals'!F26 -> 0 | BE62: ='Weekly Totals'!G26 -> 0 | BF62: ='Weekly Totals'!H26 -> 0 | BG62: ='Weekly Totals'!I26 -> 0 | BH62: ='Weekly Totals'!J26 -> 0 | BI62: ='Weekly Totals'!K26 -> 0 | BJ62: ='Weekly Totals'!L26 -> 0 | BK62: ='Weekly Totals'!M26 -> 0 | BL62: ='Weekly Totals'!N26 -> 0 | BM62: ='Weekly Totals'!O26 -> 0 | BR62: Pass | BS62: ='Weekly Totals'!D32 -> 0 | BT62: ='Weekly Totals'!E32 -> 0 | BU62: ='Weekly Totals'!F32 -> 0 | BV62: ='Weekly Totals'!G32 -> 0 | BW62: ='Weekly Totals'!H32 -> 0 | BX62: ='Weekly Totals'!I32 -> 0 | BY62: ='Weekly Totals'!J32 -> 0 | BZ62: ='Weekly Totals'!K32 -> 0 | CA62: ='Weekly Totals'!L32 -> 0 | CB62: ='Weekly Totals'!M32 -> 0 | CC62: ='Weekly Totals'!N32 -> 0 | CD62: ='Weekly Totals'!O32 -> 0 | CI62: Pass | CJ62: ='Weekly Totals'!D38 -> 0 | CK62: ='Weekly Totals'!E38 -> 0 | CL62: ='Weekly Totals'!F38 -> 0 | CM62: ='Weekly Totals'!G38 -> 0 | CN62: ='Weekly Totals'!H38 -> 0 | CO62: ='Weekly Totals'!I38 -> 0 | CP62: ='Weekly Totals'!J38 -> 0 | CQ62: ='Weekly Totals'!K38 -> 0 | CR62: ='Weekly Totals'!L38 -> 0 | CS62: ='Weekly Totals'!M38 -> 0 | CT62: ='Weekly Totals'!N38 -> 0 | CU62: ='Weekly Totals'!O38 -> 0
C63: Hour | D63: ='Weekly Totals'!D10 -> 0 | E63: ='Weekly Totals'!E10 -> 0 | F63: ='Weekly Totals'!F10 -> 0 | G63: ='Weekly Totals'!G10 -> 0 | H63: ='Weekly Totals'!H10 -> 0 | I63: ='Weekly Totals'!I10 -> 0 | J63: ='Weekly Totals'!J10 -> 0 | K63: ='Weekly Totals'!K10 -> 0 | L63: ='Weekly Totals'!L10 -> 0 | M63: ='Weekly Totals'!M10 -> 0 | N63: ='Weekly Totals'!N10 -> 0 | O63: ='Weekly Totals'!O10 -> 0 | U63: Hour | V63: ='Weekly Totals'!D16 -> 0 | W63: ='Weekly Totals'!E16 -> 0 | X63: ='Weekly Totals'!F16 -> 0 | Y63: ='Weekly Totals'!G16 -> 0 | Z63: ='Weekly Totals'!H16 -> 0 | AA63: ='Weekly Totals'!I16 -> 0 | AB63: ='Weekly Totals'!J16 -> 0 | AC63: ='Weekly Totals'!K16 -> 0 | AD63: ='Weekly Totals'!L16 -> 0 | AE63: ='Weekly Totals'!M16 -> 0 | AF63: ='Weekly Totals'!N16 -> 0 | AG63: ='Weekly Totals'!O16 -> 0 | AL63: Hour | AM63: ='Weekly Totals'!D22 -> 0 | AN63: ='Weekly Totals'!E22 -> 0 | AO63: ='Weekly Totals'!F22 -> 0 | AP63: ='Weekly Totals'!G22 -> 0 | AQ63: ='Weekly Totals'!H22 -> 0 | AR63: ='Weekly Totals'!I22 -> 0 | AS63: ='Weekly Totals'!J22 -> 0 | AT63: ='Weekly Totals'!K22 -> 0 | AU63: ='Weekly Totals'!L22 -> 0 | AV63: ='Weekly Totals'!M22 -> 0 | AW63: ='Weekly Totals'!N22 -> 0 | AX63: ='Weekly Totals'!O22 -> 0 | BA63: Hour | BB63: ='Weekly Totals'!D28 -> 0 | BC63: ='Weekly Totals'!E28 -> 0 | BD63: ='Weekly Totals'!F28 -> 0 | BE63: ='Weekly Totals'!G28 -> 0 | BF63: ='Weekly Totals'!H28 -> 0 | BG63: ='Weekly Totals'!I28 -> 0 | BH63: ='Weekly Totals'!J28 -> 0 | BI63: ='Weekly Totals'!K28 -> 0 | BJ63: ='Weekly Totals'!L28 -> 0 | BK63: ='Weekly Totals'!M28 -> 0 | BL63: ='Weekly Totals'!N28 -> 0 | BM63: ='Weekly Totals'!O28 -> 0 | BR63: Hour | BS63: ='Weekly Totals'!D34 -> 0 | BT63: ='Weekly Totals'!E34 -> 0 | BU63: ='Weekly Totals'!F34 -> 0 | BV63: ='Weekly Totals'!G34 -> 0 | BW63: ='Weekly Totals'!H34 -> 0 | BX63: ='Weekly Totals'!I34 -> 0 | BY63: ='Weekly Totals'!J34 -> 0 | BZ63: ='Weekly Totals'!K34 -> 0 | CA63: ='Weekly Totals'!L34 -> 0 | CB63: ='Weekly Totals'!M34 -> 0 | CC63: ='Weekly Totals'!N34 -> 0 | CD63: ='Weekly Totals'!O34 -> 0 | CI63: Hour | CJ63: ='Weekly Totals'!D40 -> 0 | CK63: ='Weekly Totals'!E40 -> 0 | CL63: ='Weekly Totals'!F40 -> 0 | CM63: ='Weekly Totals'!G40 -> 0 | CN63: ='Weekly Totals'!H40 -> 0 | CO63: ='Weekly Totals'!I40 -> 0 | CP63: ='Weekly Totals'!J40 -> 0 | CQ63: ='Weekly Totals'!K40 -> 0 | CR63: ='Weekly Totals'!L40 -> 0 | CS63: ='Weekly Totals'!M40 -> 0 | CT63: ='Weekly Totals'!N40 -> 0 | CU63: ='Weekly Totals'!O40 -> 0
C64: Pass/Hour | D64: =D62/D63 ->  | E64: =E62/E63 ->  | U64: Pass/Hour | V64: =V62/V$63 ->  | AL64: Pass/Hour | AM64: =AM62/AM63 ->  | BA64: Pass/Hour | BB64: =BB62/BB63 ->  | BC64: =BC62/BC63 ->  | BI64: =BI62/BI63 ->  | BR64: Pass/Hour | BS64: =BS62/BS63 ->  | BT64: =BT62/BT63 ->  | BZ64: =BZ62/BZ63 ->  | CA64: =CA62/CA63 ->  | CB64: =CB62/CB63 ->  | CC64: =CC62/CC63 ->  | CD64: =CD62/CD63 ->  | CI64: Pass/Hour | CJ64: =CJ62/CJ63 ->  | CK64: =CK62/CK63 ->  | CQ64: =CQ62/CQ63 ->  | CR64: =CR62/CR63 ->  | CS64: =CS62/CS63 ->  | CT64: =CT62/CT63 ->  | CU64: =CU62/CU63 -> 
A84: Miles Per Hour | C84: Miles per Hour (Saturday) | U84: Miles Per Hour (Sunday) | AL84: Miles Per Hour (Weekday) | BA84: Miles Per Hour (Weekday) | BR84: Miles Per Hour (Weekday) | CI84: Miles Per Hour (Weekday)
D85: July | E85: August | F85: September | G85: October | H85: November | I85: December | J85: January | K85: February | L85: March | M85: April | N85: May | O85: June | V85: July | W85: August | X85: September | Y85: October | Z85: November | AA85: December | AB85: January | AC85: February | AD85: March | AE85: April | AF85: May | AG85: June | AM85: July | AN85: August | AO85: September | AP85: October | AQ85: November | AR85: December | AS85: January | AT85: February | AU85: March | AV85: April | AW85: May | AX85: June | BB85: July | BC85: August | BD85: September | BE85: October | BF85: November | BG85: December | BH85: January | BI85: February | BJ85: March | BK85: April | BL85: May | BM85: June | BS85: July | BT85: August | BU85: September | BV85: October | BW85: November | BX85: December | BY85: January | BZ85: February | CA85: March | CB85: April | CC85: May | CD85: June | CJ85: July | CK85: August | CL85: September | CM85: October | CN85: November | CO85: December | CP85: January | CQ85: February | CR85: March | CS85: April | CT85: May | CU85: June
C86: Weekday | D86: =Weekday!D9/Weekday!D10 ->  | E86: =Weekday!E9/Weekday!E10 ->  | F86: =Weekday!F9/Weekday!F10 ->  | G86: =Weekday!G9/Weekday!G10 ->  | H86: =Weekday!H9/Weekday!H10 ->  | I86: =Weekday!I9/Weekday!I10 ->  | J86: =Weekday!J9/Weekday!J10 ->  | K86: =Weekday!K9/Weekday!K10 ->  | L86: =Weekday!L9/Weekday!L10 ->  | M86: =Weekday!M9/Weekday!M10 ->  | N86: =Weekday!N9/Weekday!N10 ->  | O86: =Weekday!O9/Weekday!O10 ->  | U86: Weekday | V86: =Weekday!D15/Weekday!D16 ->  | W86: =Weekday!E15/Weekday!E16 ->  | X86: =Weekday!F15/Weekday!F16 ->  | Y86: =Weekday!G15/Weekday!G16 ->  | Z86: =Weekday!H15/Weekday!H16 ->  | AA86: =Weekday!I15/Weekday!I16 ->  | AB86: =Weekday!J15/Weekday!J16 ->  | AC86: =Weekday!K15/Weekday!K16 ->  | AD86: =Weekday!L15/Weekday!L16 ->  | AE86: =Weekday!M15/Weekday!M16 ->  | AF86: =Weekday!N15/Weekday!N16 ->  | AG86: =Weekday!O15/Weekday!O16 ->  | AL86: Weekday | AM86: =Weekday!D21/Weekday!D22 ->  | AN86: =Weekday!E21/Weekday!E22 ->  | AO86: =Weekday!F21/Weekday!F22 ->  | AP86: =Weekday!G21/Weekday!G22 ->  | AQ86: =Weekday!H21/Weekday!H22 ->  | AR86: =Weekday!I21/Weekday!I22 ->  | AS86: =Weekday!J21/Weekday!J22 ->  | AT86: =Weekday!K21/Weekday!K22 ->  | AU86: =Weekday!L21/Weekday!L22 ->  | AV86: =Weekday!M21/Weekday!M22 ->  | AW86: =Weekday!N21/Weekday!N22 ->  | AX86: =Weekday!O21/Weekday!O22 ->  | BA86: Weekday | BB86: =Weekday!D27/Weekday!D28 ->  | BC86: =Weekday!E27/Weekday!E28 ->  | BD86: =Weekday!F27/Weekday!F28 ->  | BE86: =Weekday!G27/Weekday!G28 ->  | BF86: =Weekday!H27/Weekday!H28 ->  | BG86: =Weekday!I27/Weekday!I28 ->  | BH86: =Weekday!J27/Weekday!J28 ->  | BI86: =Weekday!K27/Weekday!K28 ->  | BJ86: =Weekday!L27/Weekday!L28 ->  | BK86: =Weekday!M27/Weekday!M28 ->  | BL86: =Weekday!N27/Weekday!N28 ->  | BM86: =Weekday!O27/Weekday!O28 ->  | BR86: Weekday | BS86: =Weekday!D33/Weekday!D34 ->  | BT86: =Weekday!E33/Weekday!E34 ->  | BU86: =Weekday!F33/Weekday!F34 ->  | BV86: =Weekday!G33/Weekday!G34 ->  | BW86: =Weekday!H33/Weekday!H34 ->  | BX86: =Weekday!I33/Weekday!I34 ->  | BY86: =Weekday!J33/Weekday!J34 ->  | BZ86: =Weekday!K33/Weekday!K34 ->  | CA86: =Weekday!L33/Weekday!L34 ->  | CB86: =Weekday!M33/Weekday!M34 ->  | CC86: =Weekday!N33/Weekday!N34 ->  | CD86: =Weekday!O33/Weekday!O34 ->  | CI86: Weekday | CJ86: =Weekday!D39/Weekday!D40 ->  | CK86: =Weekday!E39/Weekday!E40 ->  | CL86: =Weekday!F39/Weekday!F40 ->  | CM86: =Weekday!G39/Weekday!G40 ->  | CN86: =Weekday!H39/Weekday!H40 ->  | CO86: =Weekday!I39/Weekday!I40 ->  | CP86: =Weekday!J39/Weekday!J40 ->  | CQ86: =Weekday!K39/Weekday!K40 ->  | CR86: =Weekday!L39/Weekday!L40 ->  | CS86: =Weekday!M39/Weekday!M40 ->  | CT86: =Weekday!N39/Weekday!N40 ->  | CU86: =Weekday!O39/Weekday!O40 -> 
C87: Saturday | D87: =Saturday!D9/Saturday!D10 ->  | E87: =Saturday!E9/Saturday!E10 ->  | F87: =Saturday!F9/Saturday!F10 ->  | G87: =Saturday!G9/Saturday!G10 ->  | H87: =Saturday!H9/Saturday!H10 ->  | I87: =Saturday!I9/Saturday!I10 ->  | J87: =Saturday!J9/Saturday!J10 ->  | K87: =Saturday!K9/Saturday!K10 ->  | L87: =Saturday!L9/Saturday!L10 ->  | M87: =Saturday!M9/Saturday!M10 ->  | N87: =Saturday!N9/Saturday!N10 ->  | O87: =Saturday!O9/Saturday!O10 ->  | U87: Saturday | V87: =Saturday!D15/Saturday!D16 ->  | W87: =Saturday!E15/Saturday!E16 ->  | X87: =Saturday!F15/Saturday!F16 ->  | Y87: =Saturday!G15/Saturday!G16 ->  | Z87: =Saturday!H15/Saturday!H16 ->  | AA87: =Saturday!I15/Saturday!I16 ->  | AB87: =Saturday!J15/Saturday!J16 ->  | AC87: =Saturday!K15/Saturday!K16 ->  | AD87: =Saturday!L15/Saturday!L16 ->  | AE87: =Saturday!M15/Saturday!M16 ->  | AF87: =Saturday!N15/Saturday!N16 ->  | AG87: =Saturday!O15/Saturday!O16 ->  | AL87: Saturday | AM87: =Saturday!D21/Saturday!D22 ->  | AN87: =Saturday!E21/Saturday!E22 ->  | AO87: =Saturday!F21/Saturday!F22 ->  | AP87: =Saturday!G21/Saturday!G22 ->  | AQ87: =Saturday!H21/Saturday!H22 ->  | AR87: =Saturday!I21/Saturday!I22 ->  | AS87: =Saturday!J21/Saturday!J22 ->  | AT87: =Saturday!K21/Saturday!K22 ->  | AU87: =Saturday!L21/Saturday!L22 ->  | AV87: =Saturday!M21/Saturday!M22 ->  | AW87: =Saturday!N21/Saturday!N22 ->  | AX87: =Saturday!O21/Saturday!O22 ->  | BA87: Saturday | BB87: =Saturday!D27/Saturday!D28 ->  | BC87: =Saturday!E27/Saturday!E28 ->  | BD87: =Saturday!F27/Saturday!F28 ->  | BE87: =Saturday!G27/Saturday!G28 ->  | BF87: =Saturday!H27/Saturday!H28 ->  | BG87: =Saturday!I27/Saturday!I28 ->  | BH87: =Saturday!J27/Saturday!J28 ->  | BI87: =Saturday!K27/Saturday!K28 ->  | BJ87: =Saturday!L27/Saturday!L28 ->  | BK87: =Saturday!M27/Saturday!M28 ->  | BL87: =Saturday!N27/Saturday!N28 ->  | BM87: =Saturday!O27/Saturday!O28 ->  | BR87: Saturday | BS87: =Saturday!D33/Saturday!D34 ->  | BT87: =Saturday!E33/Saturday!E34 ->  | BU87: =Saturday!F33/Saturday!F34 ->  | BV87: =Saturday!G33/Saturday!G34 ->  | BW87: =Saturday!H33/Saturday!H34 ->  | BX87: =Saturday!I33/Saturday!I34 ->  | BY87: =Saturday!J33/Saturday!J34 ->  | BZ87: =Saturday!K33/Saturday!K34 ->  | CA87: =Saturday!L33/Saturday!L34 ->  | CB87: =Saturday!M33/Saturday!M34 ->  | CC87: =Saturday!N33/Saturday!N34 ->  | CD87: =Saturday!O33/Saturday!O34 ->  | CI87: Saturday | CJ87: =Saturday!D39/Saturday!D40 ->  | CK87: =Saturday!E39/Saturday!E40 ->  | CL87: =Saturday!F39/Saturday!F40 ->  | CM87: =Saturday!G39/Saturday!G40 ->  | CN87: =Saturday!H39/Saturday!H40 ->  | CO87: =Saturday!I39/Saturday!I40 ->  | CP87: =Saturday!J39/Saturday!J40 ->  | CQ87: =Saturday!K39/Saturday!K40 ->  | CR87: =Saturday!L39/Saturday!L40 ->  | CS87: =Saturday!M39/Saturday!M40 ->  | CT87: =Saturday!N39/Saturday!N40 ->  | CU87: =Saturday!O39/Saturday!O40 -> 
C88: Sunday | D88: =Sunday!D9/Sunday!D10 ->  | E88: =Sunday!E9/Sunday!E10 ->  | F88: =Sunday!F9/Sunday!F10 ->  | G88: =Sunday!G9/Sunday!G10 ->  | H88: =Sunday!H9/Sunday!H10 ->  | I88: =Sunday!I9/Sunday!I10 ->  | J88: =Sunday!J9/Sunday!J10 ->  | K88: =Sunday!K9/Sunday!K10 ->  | L88: =Sunday!L9/Sunday!L10 ->  | M88: =Sunday!M9/Sunday!M10 ->  | N88: =Sunday!N9/Sunday!N10 ->  | O88: =Sunday!O9/Sunday!O10 ->  | U88: Sunday | V88: =Sunday!D15/Sunday!D16 ->  | W88: =Sunday!E15/Sunday!E16 ->  | X88: =Sunday!F15/Sunday!F16 ->  | Y88: =Sunday!G15/Sunday!G16 ->  | Z88: =Sunday!H15/Sunday!H16 ->  | AA88: =Sunday!I15/Sunday!I16 ->  | AB88: =Sunday!J15/Sunday!J16 ->  | AC88: =Sunday!K15/Sunday!K16 ->  | AD88: =Sunday!L15/Sunday!L16 ->  | AE88: =Sunday!M15/Sunday!M16 ->  | AF88: =Sunday!N15/Sunday!N16 ->  | AG88: =Sunday!O15/Sunday!O16 ->  | AL88: Sunday | AM88: =Sunday!D21/Sunday!D22 ->  | AN88: =Sunday!E21/Sunday!E22 ->  | AO88: =Sunday!F21/Sunday!F22 ->  | AP88: =Sunday!G21/Sunday!G22 ->  | AQ88: =Sunday!H21/Sunday!H22 ->  | AR88: =Sunday!I21/Sunday!I22 ->  | AS88: =Sunday!J21/Sunday!J22 ->  | AT88: =Sunday!K21/Sunday!K22 ->  | AU88: =Sunday!L21/Sunday!L22 ->  | AV88: =Sunday!M21/Sunday!M22 ->  | AW88: =Sunday!N21/Sunday!N22 ->  | AX88: =Sunday!O21/Sunday!O22 ->  | BA88: Sunday | BB88: =Sunday!D27/Sunday!D28 ->  | BC88: =Sunday!E27/Sunday!E28 ->  | BD88: =Sunday!F27/Sunday!F28 ->  | BE88: =Sunday!G27/Sunday!G28 ->  | BF88: =Sunday!H27/Sunday!H28 ->  | BG88: =Sunday!I27/Sunday!I28 ->  | BH88: =Sunday!J27/Sunday!J28 ->  | BI88: =Sunday!K27/Sunday!K28 ->  | BJ88: =Sunday!L27/Sunday!L28 ->  | BK88: =Sunday!M27/Sunday!M28 ->  | BL88: =Sunday!N27/Sunday!N28 ->  | BM88: =Sunday!O27/Sunday!O28 ->  | BR88: Sunday | BS88: =Sunday!D33/Sunday!D34 ->  | BT88: =Sunday!E33/Sunday!E34 ->  | BU88: =Sunday!F33/Sunday!F34 ->  | BV88: =Sunday!G33/Sunday!G34 ->  | BW88: =Sunday!H33/Sunday!H34 ->  | BX88: =Sunday!I33/Sunday!I34 ->  | BY88: =Sunday!J33/Sunday!J34 ->  | BZ88: =Sunday!K33/Sunday!K34 ->  | CA88: =Sunday!L33/Sunday!L34 ->  | CB88: =Sunday!M33/Sunday!M34 ->  | CC88: =Sunday!N33/Sunday!N34 ->  | CD88: =Sunday!O33/Sunday!O34 ->  | CI88: Sunday | CJ88: =Sunday!D39/Sunday!D40 ->  | CK88: =Sunday!E39/Sunday!E40 ->  | CL88: =Sunday!F39/Sunday!F40 ->  | CM88: =Sunday!G39/Sunday!G40 ->  | CN88: =Sunday!H39/Sunday!H40 ->  | CO88: =Sunday!I39/Sunday!I40 ->  | CP88: =Sunday!J39/Sunday!J40 ->  | CQ88: =Sunday!K39/Sunday!K40 ->  | CR88: =Sunday!L39/Sunday!L40 ->  | CS88: =Sunday!M39/Sunday!M40 ->  | CT88: =Sunday!N39/Sunday!N40 ->  | CU88: =Sunday!O39/Sunday!O40 -> 

Sheet Finance (hidden)
B1: ="6. FINANCIAL: "&Overview!D4 -> 6. FINANCIAL: | L1: =Overview!B2 -> FY2024
F2: FIXED ROUTE | G2: DIAL-A-RIDE | H2: LIGHT RAIL | I2: STREET CAR | J2: VANPOOL | K2: MICROTRANSIT | L2: TOTAL | N2: These numbers should be accurate as of the submission of the report
B3: I. | C3: OPERATING EXPENSES
A5: ='Weekly Totals'!A40+1 -> 140 | C5: A. Total System Expenses | L5: =SUM(F5:K5) -> 0 | M5: ='Weekly Totals'!U40+1 -> 140
B7: II. | C7: OPERATING REVENUES
A9: =A5+1 -> 141 | C9: A. Passenger Fares (Farebox) | L9: =SUM(F9:K9) -> 0 | M9: =M5+1 -> 141
A10: =A9+1 -> 142 | C10: B. Special Transit Fares | L10: =SUM(F10:K10) -> 0 | M10: =M9+1 -> 142
A11: =A10+1 -> 143 | C11: C. Other Transportation Revenues | L11: 0 | M11: =M10+1 -> 143
A12: =A11+1 -> 144 | C12: D. Non-Transportation Revenues | L12: 0 | M12: =M11+1 -> 144
A13: =A12+1 -> 145 | C13: E. Total Revenue | F13: =SUM(F9:F12) -> 0 | G13: 0 | H13: 0 | I13: 0 | J13: 0 | K13: =SUM(K9:K12) -> 0 | L13: 0 | M13: =M12+1 -> 145
B15: III. | C15: OPERATING ASSISTANCE
A17: =A13+1 -> 146 | C17: A. Federal Assistance | L17: =SUM(F17:K17) -> 0 | M17: =M13+1 -> 146
A18: =A17+1 -> 147 | C18: B. State Assistance | L18: =SUM(F18:K18) -> 0 | M18: =M17+1 -> 147
A19: =A18+1 -> 148 | C19: C. Local Government Assistance | L19: 0 | M19: =M18+1 -> 148
A20: =A19+1 -> 149 | C20: D. Other Assistance | L20: 0 | M20: =M19+1 -> 149
A21: =A20+1 -> 150 | C21: E. Total Operating Assistance | F21: =SUM(F17:F20) -> 0 | G21: =SUM(G17:G20) -> 0 | H21: 0 | I21: 0 | J21: 0 | K21: =SUM(K17:K20) -> 0 | L21: 0 | M21: =M20+1 -> 150
F22: A | G22: B | H22: C | I22: D | J22: E | K22: F | L22: G

Sheet Reconciliation (hidden)
B1: ="7. RECONCILIATION "&Overview!D4 -> 7. RECONCILIATION | R1: =Overview!B2 -> FY2024
F3: Fixed-Route Services | H3: Dial-A-Ride Services | J3: Light Rail Services | L3: Street Car Services | N3: Vanpool Services | P3: Microtransit Services | R3: Total
B4: I. | C4: TOTAL OPERATING EXPENSES | F4: =Finance!F5 -> 0 | H4: =Finance!G5 -> 0 | J4: =Finance!H5 -> 0 | L4: =Finance!I5 -> 0 | N4: =Finance!J5 -> 0 | P4: =Finance!K5 -> 0 | R4: =SUM(F4:P4) -> 0
B6: II. | C6: TOTAL OPERATING REVENUES | F6: =Finance!F13 -> 0 | H6: =Finance!G13 -> 0 | J6: =Finance!H13 -> 0 | L6: =Finance!I13 -> 0 | N6: =Finance!J13 -> 0 | P6: =Finance!K13 -> 0 | R6: =SUM(F6:P6) -> 0
B8: III. | C8: TOTAL OPERATING ASSISTANCE | F8: =Finance!F21 -> 0 | H8: =Finance!G21 -> 0 | J8: =Finance!H21 -> 0 | L8: =Finance!I21 -> 0 | N8: =Finance!J21 -> 0 | P8: =Finance!J21 -> 0 | R8: =SUM(F8:P8) -> 0
B10: IV. | C10: REMAINDER
B11: If [Total Expenses - (Total Revenues + Total Assistance)] results in a Surplus, complete section below
B12: to identify how the Surplus will be used. If result is a Deficit, complete section below to identify
B13: source of funds used to cover the Deficit.
B15: A. | C15: Surplus . . . . . . . . . . . . . . . . . . . . . . . . . . . . . . . . . . . . . | H15: =IF((R6+R8)-R4>0,(R6+R8)-R4,0) -> 0
A16: =Finance!A21+1 -> 151 | C16: (1) Put in transit account . . . . . . . | S16: =Finance!M21+1 -> 151
A17: =A16+1 -> 152 | C17: (2) Used for other purpose . . . . . . | S17: =S16+1 -> 152
C18: (explain below)
A19: =A17+1 -> 153 | S19: =S17+1 -> 153
B21: B. | C21: Deficit . . . . . . . . . . . . . . . . . . . . . . . . . . . . . . . . . . . . . . | H21: =IF((R6+R8)-R4<0,(R6+R8)-R4,0) -> 0
A22: =A19+1 -> 154 | C22: (1) Draw down transit account . . . | S22: =S19+1 -> 154
A23: =A22+1 -> 155 | C23: (2) Local government funds . . . . . | S23: =S22+1 -> 155
A24: =A23+1 -> 156 | C24: (3) Other . . . . . . . . . . . . . . . . . . . | S24: =S23+1 -> 156
C25: (explain below)
A26: =A24+1 -> 157 | S26: =S24+1 -> 157
C28: I hereby certify that, to the best of my knowledge, the information in this report is accurate and complete.
C30: Signature of Authorized Official | J30: Date
C32: Signature of Financial Manager | J32: Date
B34: Submission: | D34: Upload the Excel file and signed PDFs (4th quarter only) to NCDOT's Partner Connect

Sheet Definitions (hidden)
A1: AM/PM Peak Period Vehicles - | C1: The greatest number of revenue vehicles needed to provide revenue service in either the AM or PM peak period (which ever is greater).
A2: Deadhead - | C2: When a vehicle is out of revenue service and not available to the general public, such as going to or from the beginning or end of a route, it is deadhead. For demand-response services, deadhead includes travel between the dispatching point and the first passenger pick-up point and the travel from the last passenger drop-off back to the dispatch point. If a demand-response vehicle is going to pick up a new passenger directly after dropping off its last passenger, as opposed to going back to the dispatch point before going to pick up a passenger, it is still in revenue service.
A3: Dial-A-Ride Services - | C3: Demand Response Service - Shared use transit service operating in response to calls from passengers or their agents to the transit operator, who schedules a vehicle to pick up the passengers to transport them to their destinations.
A4: Federal Assistance - | C4: General operating assistance received from the federal government (Section 5307 operating assistance for Governor's Apportionment systems and/or Section 5307 preventive maintenance and the cost of ADA paratransit services "capital" projects). Small urban area systems should include Section 5311 federal administration and operating assistance.
A5: Fixed-Route Services - | C5: Services provided on a repetitive, fixed schedule basis along a specific route with vehicles stopping to pick up and deliver passengers to specific locations; each fixed route trip serves the same origins and destinations, such as rail and bus (MB); unlike demand responsive (DR) and vanpool (VP) services.
A6: Light-Rail Services - | C6: A transit mode that typically is an electric railway with a light volume traffic capacity compared to heavy rail (HR). It is characterized by: • Passenger rail cars operating singly (or in short, usually two car, trains) on fixed rails in shared or exclusive right-of-way; • Low or high platform loading, and • Vehicle power drawn from an overhead electric line via a trolley or a pantograph.
A7: Local Government Assistance - | C7: Funds provided by local government units to assist in the costs of operating transit services.
A8: Midday Vehicles - | C8: Revenue vehicles required during the period between the end of the AM peak and the beginning of the PM peak.
A9: Non-Transportation Revenues - | C9: The revenue earned from activities not associated with the provision of transit service. Non-transportation funds include investment earnings and ther non-transportation sources, including: • Revenues earned from sales of maintenance services on property not owned or used by the transit agency • Rentals of revenue vehicles to other operators • Rentals of transit agency buildings and property to other organizations • Parking fees generated from parking lots not normally used as park-and-ride locations • Donations • Grants from private foundations • Development fees • Rental car fees
A10: Operating Assistance - | C10: This category of incomes is intended to include those incomes derived from sources that are not paying directly for the use of transit services, but are helping to fund the net operating deficit.
A11: Operating Expenses - | C11: The recurring costs of providing public transportation services, including all employees’ wages and salaries; fringe benefits; operating supplies such as fuel and oil; contractors’ charges for services; taxes; repair and maintenance services, parts, and supplies; equipment leases and rentals; marketing; lease or rental costs; and insurance. Operating expenses include administrative expenses. Operating expenses exclude planning and capital expenses. It also excludes depreciation on plant and equipment, costs of providing transportation services not available to the general public, and interest paid on loans on capital equipment.
A12: Operating Revenues - | C12: This category of incomes is intended to include those incomes received from the provision of transportation services.
A13: Other Assistance - | C13: Funds obtained from local institutions (such as state universities) to assist in the cost of operating transit services or revenue earned by transit systems that are organized as independent political subdivisions with their own taxation authority or revenue earned by systems through a dedicated tax collected by another organization on its behalf--such as motor vehicle registration fees. Also, any other assistance that does not fit in items III. A. - III. C., such as a tax refund, should be included as Other Assistance.
A14: Other Transportation Revenues - | C14: Revenues earned from operations closely associated with transportation operations, including revenues earned from station concessions, vehicle concessions, advertising, and charter and school bus services.
A15: Passenger Cars in Operation - | C15: The maximum number of passenger rail cars actually operated to provide service on an average weekday, average Saturday and average Sunday.
A16: Passenger Fares (Farebox) - | C16: The revenue earned from carrying passengers in scheduled fixed-route (FR) services and demand response (DR) services. This includes all the fares collected by a transit system, including base fare; zone or distance premiums; express service premiums; extra cost transfers; quantity purchase discounts applicable to the passenger’s ride; and special transit fares. It also includes fares that are collected and retained by a contractor.
A17: Revenue Service - | C17: The time when a vehicle is available to the general public and there is an expectation of carrying passengers. These passengers either directly pay fares; are subsidized by public policy; or provide payment through some contractual arrangement. Vehicles operated in fare free service are considered in revenue service. Revenue service includes layover / recovery time. Deadhead, vehicle maintenance testing, school bus service, and charter service are excluded.
A18: Service Consumed - | C18: The amount of service actually used by passengers and which is measured by unlinked passenger trips (and passenger miles).
A19: Service Supplied - | C19: The amount of service scheduled or actually operated. Service supplied is measured in vehicles, miles and / or hours that were operated.
A20: Special Transit Fares - | C20: The revenues earned for rides given in regular transit revenue service, but paid for by some organization rather than by the rider, and for rides given along special routes for which revenue may be guaranteed by a beneficiary of the service. Special transit fares include: • Industrial firms, shopping centers, public and private universities, etc., to guarantee a minimum revenue on a line operated especially for the benefit of the payer • Contractual arrangements with state or local governments • Contractual arrangements from non-government entities for special transit fares and from providing special service rides for sporting events, sightseeing, etc., where fares are not guaranteed on a contractual basis. • Contract fares collected and retained by a contractor.
A21: State Assistance - | C21: General operating assistance received from the state government (State Maintenance Assistance Program - SMAP funds) and state match to Section 5311 administration funds for small urban area systems.
A22: System Vehicles - | C22: These are the revenue service vehicles used in the fixed-route or dial-a-ride sevices. It does not include any supervisory, shop or non-revenue or vanpool vehicles.
A23: Total System Expenses - | C23: The total operating (and administrative) expenses for operating the services being provided. It includes the cost of a contractor providing services on behalf of the transit system. It excludes master plan and other major planning studies and capital expenses. It also excludes depreciation on plant and equipment, costs of providing transportation services not available to the general public, and interest paid on loans on capital equipment. It does include routine operations planning.
A24: Total Unlinked Passenger Trips - | C24: The number of passengers who board public transportation vehicles. A passenger is counted each time he/she boards a vehicle even though he/she may have transferred from another public transportation vehicle.
A25: Train Revenue Hours - | C25: The hours that trains are scheduled to or actually travel while in revenue service. Train revenue hours include layover/recovery time. Deadhead, training operators prior to revenue service, vehicle maintenance tests, and charter services are excluded.
A26: Train Revenue Miles - | C26: The miles that trains are scheduled to or actually travel while in revenue service. Deadhead, training operators prior to revenue service, vehicle maintenance tests, and charter services are excluded.
A27: Vehicle Revenue Hours - | C27: The hours that vehicles are scheduled to or actually travel while in revenue service. Vehicle revenue hours include layover/recovery time. Deadhead, operator training, vehicle maintenance testing, and school bus and charter services are excluded.
A28: Vehicle Revenue Miles - | C28: The miles that vehicles are scheduled to or actually travel while in revenue service. Vehicle revenue miles include layover/recovery time. Deadhead, operator training, vehicle maintenance testing, and school bus and charter services are excluded.

Sheet Warning
J11: You must enable editing in order to use FY24 OpStats Form
